Cogmind - Beta 17.1 @@@ ROGUE MODE // 2026.09.13 @ 23:11:45 Player: 4R-ZE3 Result: Destroyed Tau Ceti IV! Performance ------------- Evolutions (9) 4500 Regions Visited (32) 6400 Robots Destroyed (504) 2520 Value Destroyed (30427) 30427 Prototype IDs (369) 7380 Alien Tech Used (9) 1800 Bonus (51616) 51616 TOTAL SCORE: 104643 Bonus ------- High Alert Combat Kills 5707 Follower Combat Kills 1202 Network Hubs Disabled 200 Met Data Miner 300 Met Warlord at Base 500 MAIN.C Attacked Warlord 500 Warlord Defense Kills 294 Built Enhanced Grunts 300 A7 Reached Mainframe 300 Met R17 at Cetus 500 Used Core Reset Matrix 3000 Met R17 at Research 2000 Met Warlord at Research 2000 Destroyed MAIN.C Guards 500 Met MAIN.C 5000 Destroyed MAIN.C Shell 5000 Destroyed MAIN.C 10000 Met Warlord at Command 2000 Met Architect 300 Started Test 138-B 500 Started Test 138-C 8000 Destroyed A8 300 Destroyed A6 400 Destroyed A5 500 Destroyed A2 1000 Win 3000 Friendly Fire -1687 Cogmind --------- Core Integrity 1037/1600 Matter 300/300 Energy 2270/2282 System Corruption 0% Temperature Cool (6) Movement Flying (32) Location Subspace Parts ------- > --- POWER (3) -------- Point-Quantum Reactor > --- PROPULSION (6) --- Flying QT-HC Exoskeleton > --- UTILITY (13) ----- Armored Scrap Engine Huge Storage Unit Spectral Analyzer Experimental Targeting Computer Experimental Targeting Computer Experimental Targeting Computer Experimental Core Analyzer Advanced Kinecellerator Advanced Weapon Cycler Experimental Reaction Control System Advanced Phase Shifter Advanced Force Field > --- WEAPON (4) ------- Shotgun Ballistic Helical Construct/C > --- INVENTORY (25) --- Quantum Reactor Quantum Reactor High-density Centrium Leg High-density Centrium Leg High-density Centrium Leg Cooled Antigrav System Cooled Antigrav System Advanced Cryofiber Web Advanced Cryofiber Web Experimental Cooling System Experimental Cooling System Experimental Core Analyzer Advanced Weapon Cycler Experimental Transmission Jammer Experimental Cloaking Device Experimental Powered Armor Thermal Barrier Advanced Hardlight Generator Deep Network Scanner Deep Network Scanner Advanced Component Analysis Suite High-powered Transdimensional Reconstructor Subatomic Replicator Enhanced Nova Cannon Enhanced Hardcell Cannon Peak State ------------ > --- POWER ------------ Point-Quantum Reactor > --- PROPULSION ------- Flying QT-HC Exoskeleton > --- UTILITY ---------- Armored Scrap Engine Huge Storage Unit Spectral Analyzer Experimental Targeting Computer Experimental Targeting Computer Experimental Targeting Computer Experimental Core Analyzer Advanced Kinecellerator Advanced Weapon Cycler Experimental Reaction Control System Advanced Phase Shifter Experimental EM Shield > --- WEAPON ----------- Shotgun Ballistic Helical Construct/C > --- INVENTORY -------- Quantum Reactor Quantum Reactor High-density Centrium Leg High-density Centrium Leg High-density Centrium Leg Cooled Antigrav System Cooled Antigrav System Advanced Cryofiber Web Advanced Cryofiber Web Experimental Cooling System Experimental Cooling System Experimental Core Analyzer Advanced Weapon Cycler Experimental Transmission Jammer Experimental Cloaking Device Experimental Powered Armor Experimental Powered Armor Thermal Barrier Advanced Hardlight Generator Advanced Force Field Advanced Component Analysis Suite Subatomic Replicator Enhanced Nova Cannon Enhanced Hardcell Cannon Compact Linear Accelerator [Rating: 239] Favorites ----------- Power Constructs Engine Improved Deuterium Engine Power Core Neutrino Core Reactor Constructs Propulsion Constructs Treads Light Treads Leg Improved Titanium Leg Wheel Wheel Flight Unit Constructs Utility High-capacity Storage Unit Device Armored Scrap Engine Storage High-capacity Storage Unit Processor Advanced Signal Interpreter Protection Centrium Medium Armor Plating Artifact Phase Redirector Weapon Constructs Energy Gun Particle Gun Energy Cannon Subdweller Beam Cannon Ballistic Gun Subdweller Machine Gun Ballistic Cannon Constructs Slashing Weapon Katana Build | -11 -10 -10 -8 -8 -8 -6 -6 -6 -6 -6 -6 -5 -5 -5 -5 -5 -5 -5 -4 -4 -4 -4 -4 -4 -3 -3 -3 -2 -2 -1 -1 -1 ------- Run | Yrd Mat Sub Mat Sto Rec Fac Was Fac Low Low Dat Pro Fac Was Fac Upp Upp War Pro Fac Ext Cet Arc Hub Res Qua Sec Res Tes Acc Com Ac0 Slots Evolved 18 | . . . 4 . . 4 . . . . . . 2 . . . . . . 2 . . . . 2 . . 2 . 2 . . Power 2 | . . . . . . 1 . . . . . . . . . . . . . . . . . . 1 . . . . . . . Propulsion 4 | . . . 2 . . . . . . . . . 1 . . . . . . 1 . . . . . . . . . . . . Utility 11 | . . . 1 . . 3 . . . . . . 1 . . . . . . 1 . . . . 1 . . 2 . 2 . . Weapon 1 | . . . 1 . . . . . . . . . . . . . . . . . . . . . . . . . . . . . Parts Attached 147 | 3 5 8 23 11 2 3 . 8 2 1 . . 2 . 12 1 . 8 . 13 2 1 2 4 1 5 1 6 8 3 10 2 Power 14 | 1 . . 2 . 1 1 . 1 . . . . . . 4 1 . 1 . 2 . . . . . . . . . . . . Engine 5 | 1 . . 2 . 1 1 . . . . . . . . . . . . . . . . . . . . . . . . . . Core 8 | . . . . . . . . 1 . . . . . . 4 1 . 1 . 1 . . . . . . . . . . . . Reactor 1 | . . . . . . . . . . . . . . . . . . . . 1 . . . . . . . . . . . . Propulsion 17 | 2 . 3 8 3 . . . . . . . . . . . . . . . 1 . . . . . . . . . . . . Treads 11 | 2 . 1 5 3 . . . . . . . . . . . . . . . . . . . . . . . . . . . . Leg 1 | . . . 1 . . . . . . . . . . . . . . . . . . . . . . . . . . . . . Wheel 5 | . . 2 2 . . . . . . . . . . . . . . . . 1 . . . . . . . . . . . . Hover . | . . . . . . . . . . . . . . . . . . . . . . . . . . . . . . . . . Flight . | . . . . . . . . . . . . . . . . . . . . . . . . . . . . . . . . . Utility 96 | . 3 . 5 3 1 2 . 7 2 1 . . 2 . 8 . . 7 . 10 2 1 2 4 1 5 1 6 8 3 10 2 Device 61 | . 1 . 5 3 1 1 . 5 1 1 . . . . 6 . . 5 . 8 2 1 1 2 1 3 . 3 3 1 6 1 Storage 11 | . 2 . . . . . . . . . . . . . . . . . . 1 . . . . . . 1 3 3 . 1 . Processor 15 | . . . . . . . . . 1 . . . 2 . 2 . . 1 . 1 . . . 1 . . . . 2 2 2 1 Hackware . | . . . . . . . . . . . . . . . . . . . . . . . . . . . . . . . . . Protection 8 | . . . . . . 1 . 2 . . . . . . . . . 1 . . . . 1 1 . 1 . . . . 1 . Artifact 1 | . . . . . . . . . . . . . . . . . . . . . . . . . . 1 . . . . . . Weapon 20 | . 2 5 8 5 . . . . . . . . . . . . . . . . . . . . . . . . . . . . Energy Gun 16 | . 2 2 7 5 . . . . . . . . . . . . . . . . . . . . . . . . . . . . Energy Cannon 2 | . . 2 . . . . . . . . . . . . . . . . . . . . . . . . . . . . . . Ballistic Gun 1 | . . 1 . . . . . . . . . . . . . . . . . . . . . . . . . . . . . . Ballistic Cannon . | . . . . . . . . . . . . . . . . . . . . . . . . . . . . . . . . . Launcher . | . . . . . . . . . . . . . . . . . . . . . . . . . . . . . . . . . Special Weapon . | . . . . . . . . . . . . . . . . . . . . . . . . . . . . . . . . . Impact Weapon . | . . . . . . . . . . . . . . . . . . . . . . . . . . . . . . . . . Slashing Weapon 1 | . . . 1 . . . . . . . . . . . . . . . . . . . . . . . . . . . . . Piercing Weapon . | . . . . . . . . . . . . . . . . . . . . . . . . . . . . . . . . . Special Melee Weapon . | . . . . . . . . . . . . . . . . . . . . . . . . . . . . . . . . . Unidentified Prototypes 19 | . . . 2 2 1 . . . . . . . . . . . . 7 . . . . 1 3 . 2 . . 1 . . . Corrupted Parts 1 | . . . . . . . . . . . . . . . . . . . . . . . . . . . . 1 . . . . System Corruption 5 | . . . . . . . . . . . . . . . . . . . . . . . . . . . . 5 . . . . Parts Lost 31 | . . 2 7 2 3 . . . 1 . . . . . 4 . . 2 2 2 1 . . . . 1 . 1 . . 2 1 Power 6 | . . . 1 . 1 . . . . . . . . . 2 . . . 1 1 . . . . . . . . . . . . Propulsion 7 | . . 2 3 1 1 . . . . . . . . . . . . . . . . . . . . . . . . . . . Utility 15 | . . . 2 . 1 . . . 1 . . . . . 2 . . 2 1 1 1 . . . . 1 . 1 . . 1 1 Weapon 3 | . . . 1 1 . . . . . . . . . . . . . . . . . . . . . . . . . . 1 . Highest Loss Streak 4 | . . 2 4 1 3 . . . 1 . . . . . 4 . . 2 1 1 1 . . . . 1 . 1 . . 1 1 To Critical Strikes 1 | . . . . . 1 . . . . . . . . . . . . . . . . . . . . . . . . . . . Average Backups 18 | 1 6 13 18 19 12 16 19 18 18 19 20 19 19 19 18 19 20 18 18 19 19 19 20 20 19 19 19 18 19 19 19 24 Power 1 | . 1 1 1 2 2 5 5 1 1 1 1 1 . . 1 2 2 . . 1 1 1 1 1 . . . . . . . 2 Propulsion 1 | . . 1 . . 3 5 5 1 2 2 2 2 2 2 4 2 2 . 1 . . . . . . . . 1 1 1 1 5 Utility 10 | . 1 3 3 3 2 4 2 6 5 6 7 7 7 8 7 9 9 11 13 15 14 16 18 18 17 15 13 11 11 11 11 13 Weapon 4 | . 3 7 13 13 3 1 6 9 9 10 10 9 9 9 4 6 7 5 3 2 2 1 1 1 1 2 3 3 4 4 3 2 Tool/Special . | . . . . . . . . . . . . . . . . . . . . . . . . . . . . . . . . . Unused Backups 253 | . . . 7 2 30 . . 30 4 . . 1 1 . 21 1 . 10 . 8 8 3 3 . 7 33 6 39 10 1 7 21 Power 18 | . . . 1 . . . . 6 . . . . . . 1 . . . . . 2 . 1 . 1 1 . 1 . . 2 2 Propulsion 68 | . . . . . 17 . . 8 . . . . . . 13 . . 2 . 2 . 1 . . 1 7 1 9 1 . 1 5 Utility 58 | . . . 3 1 2 . . 2 . . . . . . . . . . . 3 . 1 2 . . 14 3 12 4 1 1 9 Weapon 107 | . . . 3 1 11 . . 14 4 . . 1 1 . 7 1 . 8 . 3 6 1 . . 5 11 2 17 5 . 3 3 Tool/Special 2 | . . . . . . . . . . . . . . . . . . . . . . . . . . . . . . . . 2 Average Slot Usage (%) 59 | . 92 99 92 99 60 41 60 54 52 53 53 53 51 52 54 58 58 57 57 52 51 52 51 51 52 51 50 53 53 56 55 56 Engine 2 | . 12 14 9 9 8 10 13 6 . . . . . . . . . . . . . . . . . . . . . . . . Core 1 | . . . . . . . . . . . 6 6 5 3 6 11 11 8 6 2 . 2 . . . . . . . . . . Reactor 2 | . . . . . . . . . 5 5 . . . 1 1 . . 1 3 3 4 2 5 5 3 4 4 4 4 3 3 3 Treads 5 | . 28 8 21 35 13 . . 2 1 . . . . . 2 1 . 1 5 4 4 4 . . . . . 2 4 3 2 . Wheel 1 | . . 19 6 . 2 . . . . . . . . . . . . . . . . . . . . . . . . . . . Device 18 | . 11 14 16 18 9 8 20 21 16 15 20 20 17 17 15 17 17 13 18 22 22 26 22 19 19 21 21 27 22 22 18 21 Storage 5 | . 11 14 9 9 9 6 6 6 6 6 6 6 5 5 5 5 5 5 5 5 5 5 5 5 4 4 4 4 4 3 3 3 Processor 7 | . . . . . . . . . 3 6 6 6 8 11 11 11 11 12 5 6 8 5 5 5 9 9 9 8 13 19 22 20 Protection 1 | . . . . . . 1 6 4 6 4 . . 1 . . . . . 3 1 . . 3 5 4 1 . 1 . . . . Energy Gun 3 | . 25 13 19 26 10 . . . . . . . . . . . . . . . . . . . . . . . . . . . Energy Cannon 1 | . . 8 4 . 2 . . . . . . . . . 1 1 . 2 . . . . 2 . 2 1 . 1 4 3 . . Ballistic Cannon 3 | . . . . . 2 6 6 6 6 6 6 6 5 5 3 3 5 2 5 5 4 4 2 5 2 2 4 2 . . 2 3 Peak Build Rating 239 | 3 10 13 33 35 52 65 67 87 89 89 89 89 94 95 107 107 106 134 129 137 138 140 146 151 171 180 186 213 218 227 236 239 Average Rating 123 | 1 8 11 25 31 35 55 66 74 88 89 89 89 92 93 99 105 105 115 124 132 133 132 144 146 161 171 179 203 212 225 226 235 On Entrance 108 | . 2 10 13 31 35 52 65 67 87 89 89 89 89 92 95 106 107 105 129 123 135 128 140 146 147 171 178 185 211 212 227 234 Avg Prop Armor Cover (%) 15 | 41 41 8 15 . . . . . . . . . . . . . . . . . . . . . . . . . . . . . Naked Turns . | . . . . . . . . . . . . . . . . . . . . . . . . . . . . . . . . . Heaviest Build 191 | 5 52 62 63 63 63 79 79 79 79 78 72 72 79 72 87 86 86 107 107 96 98 96 98 102 118 130 135 131 128 128 184 191 Greatest Support 375 | 20 40 40 80 80 93 93 93 93 93 93 93 93 95 95 95 78 78 181 181 234 163 229 199 199 238 284 248 375 375 375 375 300 Greatest Overweight (x) 6 | 1 1 6 6 1 2 . . . . . . . . . 1 1 1 1 . . . . . . . . . . . . . . Average Overweight (x) . | . . 4 1 . . . . . . . . . . . . . 1 . . . . . . . . . . . . . . . Largest Inventory Capacity 25 | 5 20 20 20 20 20 20 20 20 20 20 20 20 20 20 20 20 20 20 20 20 20 20 20 20 20 20 20 20 20 20 25 25 Average Capacity 20 | 5 15 20 20 20 20 20 20 20 20 20 20 20 20 20 20 20 20 20 20 20 20 20 20 20 20 20 20 20 20 20 21 25 Most Carried 25 | 3 8 19 20 20 20 20 20 20 20 20 20 20 20 20 20 20 20 20 19 20 20 20 20 20 20 20 20 20 20 20 25 25 Average Carried 18 | 1 6 13 18 19 12 16 19 18 18 19 20 19 19 19 18 19 20 18 18 19 19 19 20 19 19 19 19 19 19 19 19 24 Final Capacity 25 | 5 20 20 20 20 20 20 20 20 20 20 20 20 20 20 20 20 20 20 20 20 20 20 20 20 20 20 20 20 20 20 25 25 Final Carried 25 | 3 8 19 20 20 16 18 20 20 19 20 20 19 19 20 18 20 20 19 18 19 20 20 20 20 20 20 20 19 20 20 24 25 Scrap Engine Consumption 404 | . . . . . 49 1 1 49 5 3 . 2 6 2 42 5 . 33 2 45 24 19 2 4 24 20 9 27 3 3 20 4 Constructs Created 6 | . . . . . 3 . . 1 . . . . . . 1 . . . . 1 . . . . . . . . . . . . Constructs Modified 167 | . . . . . 17 . . 19 4 2 . 1 2 2 17 2 . 15 . 18 12 10 1 . 9 10 3 13 1 . 8 1 Class Distribution -------------------- 53% | Construct 21% | Alien-Construct 6% | Commander-Construct 6% | Mutant 4% | Gunner Dominant Class ---------------- Mutant | -10/Materials Scavenger-Mutant | -10/Subcaves Scavenger-Gunner | -8/Materials Gunner | -8/Storage Construct | -8/Recycling Construct | -6/Factory Construct | -6/Waste Construct | -6/Factory Construct | -6/Lower Caves Construct | -6/Lower Caves Construct | -6/Data Miner Construct | -5/Proximity Caves Construct | -5/Factory Construct | -5/Waste Construct | -5/Factory Construct | -5/Upper Caves Construct | -5/Upper Caves Construct | -5/Warlord Construct | -4/Proximity Caves Construct | -4/Factory Commander-Construct | -4/Extension Commander-Construct | -4/Cetus Commander-Construct | -4/Archives Commander-Construct | -4/Hub_04(d) Construct | -3/Research Construct | -3/Quarantine Alien-Construct | -3/Section 7 Alien-Construct | -2/Research Alien-Construct | -2/Testing Alien-Construct | -1/Access Alien-Construct | -1/Command Alien-Construct | -1/Access_0 Resources | -11 -10 -10 -8 -8 -8 -6 -6 -6 -6 -6 -6 -5 -5 -5 -5 -5 -5 -5 -4 -4 -4 -4 -4 -4 -3 -3 -3 -2 -2 -1 -1 -1 ----------- Run | Yrd Mat Sub Mat Sto Rec Fac Was Fac Low Low Dat Pro Fac Was Fac Upp Upp War Pro Fac Ext Cet Arc Hub Res Qua Sec Res Tes Acc Com Ac0 Matter Collected 17603 | 220 66 96 298 192 42 . . 1033 209 454 . 486 110 . 1936 148 48 187 498 2212 1106 428 329 874 870 689 1319 760 516 248 1552 677 Remotely 1873 | . . . . . . . . . . . . . . . 590 . . . . 457 . . . 627 199 . . . . . . . Salvage Created 32986 | . 260 243 802 707 1587 . . 1564 244 372 . 495 107 235 2990 304 . 132 676 4235 2014 513 241 1321 1041 1213 1970 1567 1163 872 4187 1931 Parts 1425 | . 19 13 21 26 63 . . 81 11 14 . 20 2 2 118 11 . 4 33 215 89 19 15 52 18 35 107 88 55 42 140 112 Haulers Intercepted 6 | . 1 . 1 . . . . 1 . . . . . . . . . . . . . . . 2 1 . . . . . . . Recyclers Shooed 11 | . 1 . . . 1 . . 3 1 . . . . . 2 . . . . 3 . . . . . . . . . . . . Parts Field Recycled . | . . . . . . . . . . . . . . . . . . . . . . . . . . . . . . . . . Retrieved Matter . | . . . . . . . . . . . . . . . . . . . . . . . . . . . . . . . . . Parts Self-Destructed 77 | . . 6 . . . . . . 6 12 . 19 . . . 4 . . 30 . . . . . . . . . . . . . Prevented 1 | . . . . . . . . . 1 . . . . . . . . . . . . . . . . . . . . . . . Parts Restored . | . . . . . . . . . . . . . . . . . . . . . . . . . . . . . . . . . Kills | -11 -10 -10 -8 -8 -8 -6 -6 -6 -6 -6 -6 -5 -5 -5 -5 -5 -5 -5 -4 -4 -4 -4 -4 -4 -3 -3 -3 -2 -2 -1 -1 -1 ------- Run | Yrd Mat Sub Mat Sto Rec Fac Was Fac Low Low Dat Pro Fac Was Fac Upp Upp War Pro Fac Ext Cet Arc Hub Res Qua Sec Res Tes Acc Com Ac0 Combat Hostiles Destroyed 394 | . 9 8 13 16 13 . . 25 3 6 . 8 1 1 31 4 . 3 12 56 19 6 2 7 11 12 24 27 12 11 34 20 Guns 44 | . 9 7 6 15 7 . . . . . . . . . . . . . . . . . . . . . . . . . . . Cannons 326 | . . 1 3 . 5 . . 25 3 6 . 8 1 1 30 4 . 3 12 54 19 6 2 7 6 3 24 27 12 10 34 20 AOE 3 | . . . . . . . . . . . . . . . 1 . . . . 2 . . . . . . . . . . . . Classes Destroyed 28 | . 5 1 5 . 2 . . 3 . . . . . 1 1 2 . . 1 2 1 . . . . 2 . 1 . . 1 . Worker 14 | . 2 . . . . . . 1 . . . . 1 . 5 . . . . 1 2 . . 2 . . . . . . . . Builder 16 | . 1 . . . 4 . . 1 . . . . . . 2 . . . . 1 3 . . 2 . . 2 . . . . . Tunneler 5 | . . . . . 3 . . . . . . . . . . . . . . . 1 . . . . . . . . 1 . . Hauler 6 | . 1 . 1 . . . . 1 . . . . . . . . . . . . . . . 2 1 . . . . . . . Recycler 20 | . . . 1 . 10 . . 1 . . . . . . 5 . . . . 1 1 . . 1 . . . . . . . . Mechanic 3 | . . . . . . . . . . . . . . . . . . . . 3 . . . . . . . . . . . . Operator 15 | . . . . . . . . 1 . . . . . . . . . . . 1 1 . 3 2 . . 1 . 2 2 2 . Watcher 24 | . . . 1 . . . . . . . . . . . 3 . . . . 2 2 . . 1 2 1 4 1 3 2 2 . Swarmer 49 | . 6 1 . 3 1 . . 8 . 1 . 1 . . . 1 . . 5 5 1 . . . . . . 12 . 2 2 . Cutter 1 | . . . . . . . . . . . . . . . . . . . . . . . . . . . . . . . 1 . Grunt 118 | . 3 . 7 8 2 . . 8 . 4 . 4 . . 13 1 . 2 3 16 10 . . 1 4 . 6 3 . 5 18 . Brawler 7 | . . . 2 . 1 . . . . . . . . . 1 . . . 1 1 . . . . 1 . . . . . . . Duelist 7 | . . . 1 . . . . 1 . . . . . . . . . . . 3 1 . . . . . . . . . 1 . Protector 3 | . . . . . 1 . . . . . . . . . . . . 1 . . . . . . . . . 1 . . . . Sentry 46 | . . . 3 5 3 . . 3 . 1 . 1 1 . 4 1 . . . 5 5 . 2 2 3 . 3 1 . 1 2 . Demolisher 2 | . . . . . . . . . . . . . . . . . . . . . 1 . . . . . . 1 . . . . Specialist 8 | . . . . . . . . . . . . . . . 4 . . . . 2 . . . . . . . . 2 . . . Hunter 40 | . . . . . . . . 2 2 . . 2 . . 2 . . . 2 12 . . . . 3 . 4 3 4 . 4 . Programmer 41 | . . . . . . . . 3 1 . . . . . 7 . . . . 8 . . . 1 . . 9 2 6 3 1 . Heavy 5 | . . . . . . . . . . . . . . . . . . . . 4 . . . . . . . . . . 1 . Behemoth 2 | . . . . . . . . . . . . . . . . . . . 1 . 1 . . . . . . . . . . . Compactor 1 | . . . . . . . . . . . . . . 1 . . . . . . . . . . . . . . . . . . Cetus Guard 6 | . . . . . . . . . . . . . . . . . . . . . . 6 . . . . . . . . . . Quarantine Guard 10 | . . . . . . . . . . . . . . . . . . . . . . . . . . 10 . . . . . . Enhanced Grunt 16 | . . . . . . . . . . . . . . . . . . . . . . . . 2 . . . . . . . 14 Enhanced Sentry 2 | . . . . . . . . . . . . . . . . . . . . . . . . . . . . . . . . 2 Lightning 3 | . . . . . . . . . . . . . . . . . . . . . . . . 3 . . . . . . . . Combat Programmer 2 | . . . . . . . . . . . . . . . . . . . . . . . . . . . . . . . 2 . Striker 4 | . . . . . . . . . . . . . . . . . . . . . . . . . . . . 4 . . . . Alpha 7 3 | . . . . . . . . . . . . . . . . . . . . . . . . . . 1 2 . . . . . Fortress 1 | . . . . . . . . . . . . . . . . . . . . . . . . . . 1 . . . . . . Subdweller 12 | . . 7 . . 5 . . . . . . . . . . . . . . . . . . . . . . . . . . . Packrat 1 | . . . . . . . . . 1 . . . . . . . . . . . . . . . . . . . . . . . Samaritan 1 | . . . . . . . . . . . . . . . . 1 . . . . . . . . . . . . . . . . Wasp 1 | . . . . . . . . . . . . . . . . . . . . . . . . . . . . . . . 1 . Savage 1 | . . . . . . . . . . . . . . . . . . . . . 1 . . . . . . . . . . . Butcher 1 | . . . . . . . . . . . . . . . . . . . . . 1 . . . . . . . . . . . Guerrilla 2 | . . . . . . . . . . . . . . . . . . . . . . 1 . 1 . . . . . . . . Mutant 1 | . . . . . . . . . . . . . . . . 1 . . . . . . . . . . . . . . . . Best Kill Streak 18 | . 4 3 7 3 8 . . 9 1 3 . 4 2 1 18 3 . 1 5 9 5 4 2 8 6 4 7 9 6 8 16 4 Combat Bots Only 12 | . 4 3 6 3 3 . . 9 1 3 . 4 1 1 12 3 . 1 5 8 3 4 2 5 6 4 3 9 4 7 10 4 Max Kills in Single Turn 7 | . 2 1 1 1 2 . . 2 1 1 . 1 1 1 3 1 . 1 1 3 3 1 1 7 1 2 2 2 1 2 2 2 Gunslinging 1 | . 1 . . . . . . . . . . . . . . . . . . . . . . . . . . . . . . . Exploded 2 | . . . . . . . . . . . . . . . 1 . . . . 2 . . . . . . . . . . . . Melee . | . . . . . . . . . . . . . . . . . . . . . . . . . . . . . . . . . Uniques/NPCs Destroyed 6 | . . . . . . . . . . . . . . . . . . . . . . . . . . . . . . . 2 4 MAIN.C Shell (-1/Command) MAIN.C (-1/Command) A8 (-1/Access_0) A6 (-1/Access_0) A5 (-1/Access_0) A2 (-1/Access_0) Combat | -11 -10 -10 -8 -8 -8 -6 -6 -6 -6 -6 -6 -5 -5 -5 -5 -5 -5 -5 -4 -4 -4 -4 -4 -4 -3 -3 -3 -2 -2 -1 -1 -1 -------- Run | Yrd Mat Sub Mat Sto Rec Fac Was Fac Low Low Dat Pro Fac Was Fac Upp Upp War Pro Fac Ext Cet Arc Hub Res Qua Sec Res Tes Acc Com Ac0 Hostile Shots Fired 2066 | . 73 26 59 68 32 . . 154 14 27 . 30 6 . 200 5 . 44 117 374 57 29 4 59 31 66 163 70 37 14 144 163 Missed 824 | . 27 7 9 20 9 . . 52 3 12 . 7 2 . 57 1 . 21 46 143 18 6 . 16 22 24 96 37 21 8 33 127 Hits 1242 | . 46 19 50 48 23 . . 102 11 15 . 23 4 . 143 4 . 23 71 231 39 23 4 43 9 42 67 33 16 6 111 36 Melee 15 | . . . 10 . . . . . . . . . . . . . . . . 2 1 . . . . . . . . . . 2 Projectile 1227 | . 46 19 40 48 23 . . 102 11 15 . 23 4 . 143 4 . 23 71 229 38 23 4 43 9 42 67 33 16 6 111 34 AOE 14 | . . . . . . . . . . . . . . . 1 . . 3 . . . . . . . . . . . . 10 . Critical Strikes 72 | . 1 1 4 2 2 . . 2 . 2 . 2 . . 8 . . 1 2 14 2 3 1 7 1 3 5 . 1 . 6 2 Part Disruptions 1 | . . . . . . . . . . . . . . . . . . . . . . . . . . . . . . . . 1 Damage Taken 24185 | . 412 404 948 701 432 . . 1420 192 232 . 457 98 . 2954 61 . 755 1269 3977 842 674 102 1409 234 898 814 510 90 41 3771 488 Core 2335 | . 68 92 110 107 51 . . 107 . . . 37 . . 230 . . 72 134 348 18 109 25 109 . 88 107 12 12 . 409 90 Absorbed by Shields 3431 | . . . . . . . . . . . . . . . . . . 214 88 . 116 . . . . 733 518 371 93 41 795 462 Ignored by Resistances 1580 | . . . . . . . . 6 3 . . . . . . . . . . 205 6 . . 108 . . 360 1 210 47 546 88 Regen/Repaired (Parts) 12380 | . . . . . 25 . . 439 414 34 . 79 470 12 1473 138 . 540 . 2670 906 969 . 46 319 118 649 639 207 9 2206 18 Core Remaining (%) 67 | 100 . 36 . . 51 . . . . . . 83 . . . . . . 56 . . . . 47 . . 76 . 98 . . 64 Volleys Fired 1396 | . 25 21 37 38 62 . . 92 10 21 . 22 4 11 134 10 3 15 38 181 57 22 15 38 38 55 91 50 32 24 153 97 Largest 3 | . 2 2 3 3 3 . . 1 1 1 . 1 1 1 1 1 1 1 1 1 1 1 1 1 1 1 1 1 1 1 1 1 Hottest 252 | . 130 160 190 178 166 . . 141 114 114 . 114 73 252 252 138 138 138 138 138 239 239 132 86 86 86 86 117 117 117 117 65 Shots Fired 1612 | . 50 42 95 112 100 . . 92 10 21 . 22 4 11 134 10 3 15 38 181 57 22 15 38 38 55 91 50 32 24 153 97 Gun 323 | . 50 36 65 112 60 . . . . . . . . . . . . . . . . . . . . . . . . . . . Cannon 1289 | . . 6 30 . 40 . . 92 10 21 . 22 4 11 134 10 3 15 38 181 57 22 15 38 38 55 91 50 32 24 153 97 Launcher . | . . . . . . . . . . . . . . . . . . . . . . . . . . . . . . . . . Special . | . . . . . . . . . . . . . . . . . . . . . . . . . . . . . . . . . Kinetic 948 | . . 8 . . 35 . . 92 10 21 . 22 4 11 108 10 3 2 38 181 57 22 . 38 14 32 91 21 . . 31 97 Thermal 611 | . 50 34 95 112 65 . . . . . . . . . 26 . . . . . . . 15 . 7 . . 29 32 24 122 . Explosive . | . . . . . . . . . . . . . . . . . . . . . . . . . . . . . . . . . Electromagnetic 40 | . . . . . . . . . . . . . . . . . . . . . . . . . 17 23 . . . . . . Entropic 13 | . . . . . . . . . . . . . . . . . . 13 . . . . . . . . . . . . . . Robot Hit Streak 107 | . 11 13 9 12 38 . . 15 8 6 . 10 12 13 9 5 . 4 7 13 9 7 9 6 5 17 13 6 17 7 86 107 Robot Miss Streak 6 | . 3 3 3 2 4 . . 5 5 6 . 4 . 4 5 3 . 1 5 6 5 3 1 3 2 2 4 3 1 3 4 3 Penetration Max 2 | . . . . . . . . 2 . . . . 1 . 1 . . 1 1 1 2 1 . 1 . . 1 1 . . 1 1 Secondary Targets 8 | . 3 2 . 1 2 . . . . . . . . . . . . . . . . . . . . . . . . . . . Max Gunslinging Chain 1 | . 1 1 . 1 1 . . . . . . . . . . . . . . . . . . . . . . . . . . . Shots Hit Robots 1234 | . 35 30 63 76 86 . . 74 7 18 . 21 4 10 70 8 . 8 38 166 50 18 12 20 24 40 53 37 24 18 138 86 Core Hits 830 | . 15 14 21 28 37 . . 52 8 14 . 23 4 5 54 6 . 4 40 175 47 12 5 31 4 9 27 22 15 14 89 55 Critical Kills 11 | . . 1 3 . . . . . . . . . . . 1 . . . . . . . 2 3 1 . . . . . . . Critical Parts Destroyed 9 | . . . 1 . . . . . . . . . . . 1 . . . . 2 . . 1 2 1 . . . . . . 1 Critical Strikes 64 | . . 2 5 10 5 . . . 1 1 . . . . 2 . . . . 2 . . 3 5 3 8 13 3 . . . 1 Burn 16 | . . . 1 10 5 . . . . . . . . . . . . . . . . . . . . . . . . . . . Meltdown 3 | . . . 3 . . . . . . . . . . . . . . . . . . . . . . . . . . . . . Destroy 18 | . . 2 1 . . . . . . . . . . . 2 . . . . 2 . . 3 5 2 . . . . . . 1 Blast 2 | . . . . . . . . . 1 1 . . . . . . . . . . . . . . . . . . . . . . Sunder 25 | . . . . . . . . . . . . . . . . . . . . . . . . . 1 8 13 3 . . . . Melee Attacks 4 | . . . 1 2 1 . . . . . . . . . . . . . . . . . . . . . . . . . . . Impact . | . . . . . . . . . . . . . . . . . . . . . . . . . . . . . . . . . Slashing 4 | . . . 1 2 1 . . . . . . . . . . . . . . . . . . . . . . . . . . . Piercing . | . . . . . . . . . . . . . . . . . . . . . . . . . . . . . . . . . Sneak Attacks . | . . . . . . . . . . . . . . . . . . . . . . . . . . . . . . . . . Combat Hostiles . | . . . . . . . . . . . . . . . . . . . . . . . . . . . . . . . . . Follow-up Attacks . | . . . . . . . . . . . . . . . . . . . . . . . . . . . . . . . . . Damage Inflicted 110431 | . 575 517 1314 1352 2050 . . 3267 336 751 . 1026 392 666 7136 490 . 593 1902 10900 4502 1371 1414 3618 3571 7131 9443 5365 3923 3189 18131 15506 Guns 4154 | . 573 488 767 1352 974 . . . . . . . . . . . . . . . . . . . . . . . . . . . Cannons 104614 | . . 29 547 . 1076 . . 3256 336 751 . 1026 392 666 6827 490 . 593 1902 10545 4502 1371 1414 2653 3571 7110 9443 5365 3923 3189 18131 15506 Explosions 1635 | . . . . . . . . 11 . . . . . . 309 . . . . 350 . . . 965 . . . . . . . . Melee . | . . . . . . . . . . . . . . . . . . . . . . . . . . . . . . . . . Ramming 28 | . 2 . . . . . . . . . . . . . . . . . . 5 . . . . . 21 . . . . . . Kinetic 70738 | . . 143 . . 1006 . . 3256 336 751 . 1026 392 666 5776 490 . 143 1902 10545 4502 1371 . 2653 797 4162 9443 1976 . . 3896 15506 Thermal 32569 | . 573 374 1314 1352 1044 . . . . . . . . . 1051 . . . . 66 . . 1414 . 645 . . 3389 3923 3189 14235 . Explosive 284 | . . . . . . . . . . . . . . . . . . . . 284 . . . . . . . . . . . . Electromagnetic 6362 | . . . . . . . . 11 . . . . . . 309 . . . . . . . . 965 2129 2948 . . . . . . Impact . | . . . . . . . . . . . . . . . . . . . . . . . . . . . . . . . . . Slashing . | . . . . . . . . . . . . . . . . . . . . . . . . . . . . . . . . . Piercing . | . . . . . . . . . . . . . . . . . . . . . . . . . . . . . . . . . Entropic 450 | . . . . . . . . . . . . . . . . . . 450 . . . . . . . . . . . . . . Highest Corruption 14 | . . . . . . . . . . . . . . . 5 5 5 8 8 5 5 . . 14 . . . 5 5 . . . Average Corruption 3 | . . . . . . . . . . . . . . . 2 5 5 7 8 1 4 . . 6 . . . 5 3 . . . Corruption Purged 10 | . . . . . . . . . . . . . . . . . . . . . 5 . . . . . . . 5 . . . Corruption Blocked . | . . . . . . . . . . . . . . . . . . . . . . . . . . . . . . . . . Effects 124 | . . . . . . . . . . . . . . . 21 14 13 5 21 17 7 . . 4 . . . 21 1 . . . Message Errors 26 | . . . . . . . . . . . . . . . 4 2 4 1 4 3 . . . 2 . . . 5 1 . . . Matter Fused 39 | . . . . . . . . . . . . . . . 6 5 3 1 3 7 5 . . 1 . . . 8 . . . . Heat Flow Errors 10 | . . . . . . . . . . . . . . . 1 2 2 1 3 1 . . . . . . . . . . . . Energy Discharges 17 | . . . . . . . . . . . . . . . 2 3 3 1 2 4 1 . . . . . . 1 . . . . Parts Rejected 4 | . . . . . . . . . . . . . . . 1 . . . 1 2 . . . . . . . . . . . . Parts Fused 3 | . . . . . . . . . . . . . . . . 1 . . 1 . . . . . . . . 1 . . . . Data Loss (minor) 14 | . . . . . . . . . . . . . . . 3 1 1 1 2 . 1 . . . . . . 5 . . . . Data Loss (major) 8 | . . . . . . . . . . . . . . . 3 . . . 4 . . . . . . . . 1 . . . . Alerts 2 | . . . . . . . . . . . . . . . 1 . . . 1 . . . . . . . . . . . . . Misdirections 1 | . . . . . . . . . . . . . . . . . . . . . . . . 1 . . . . . . . . Overload Shots 1 | . . . . 1 . . . . . . . . . . . . . . . . . . . . . . . . . . . . Overflow Damage 9384 | . . . 20 . 79 . . 58 18 16 . . 28 . 932 23 . 16 . 270 101 . 53 501 1089 501 1453 833 490 474 1283 1146 Projectiles 9346 | . . . 20 . 79 . . 58 18 16 . . 28 . 932 23 . 16 . 250 101 . 53 483 1089 501 1453 833 490 474 1283 1146 Explosions 38 | . . . . . . . . . . . . . . . . . . . . 20 . . . 18 . . . . . . . . Melee . | . . . . . . . . . . . . . . . . . . . . . . . . . . . . . . . . . Knockbacks 324 | . . . . . 9 . . 30 2 5 . . . . 28 1 . 1 13 85 24 1 . 8 2 . 26 5 . . 5 79 Impact . | . . . . . . . . . . . . . . . . . . . . . . . . . . . . . . . . . Kinetic 292 | . . . . . 6 . . 27 2 5 . . . . 23 1 . 1 13 76 18 1 . 7 2 . 24 5 . . 5 76 Secondary 32 | . . . . . 3 . . 3 . . . . . . 5 . . . . 9 6 . . 1 . . 2 . . . . 3 Self-Inflicted Damage 291 | . . . . . . . . . . . . . . . . . . . . 94 . . . 94 . . . 103 . . . . Shots 3 | . . . . . . . . . . . . . . . . . . . . 1 . . . 1 . . . 1 . . . . Rammed 2 | . 1 . . . . . . . . . . . . . . . . . . 1 . . . . . . . . . . . . Targets Rammed 3 | . 1 . . . . . . . . . . . . . . . . . . 1 . . . . . 1 . . . . . . Kicked 1 | . . . . . . . . . . . . . . . . . . . . . . . . . . 1 . . . . . . Crushed . | . . . . . . . . . . . . . . . . . . . . . . . . . . . . . . . . . Highest Temperature 373 | . 336 256 243 54 178 . . 236 264 358 . 29 34 360 252 228 276 239 288 245 373 215 24 68 48 302 11 36 128 113 159 . Average Temperature 71 | . 117 121 96 28 59 . . 50 64 126 . 11 19 93 47 71 97 86 93 77 107 75 11 36 25 73 4 24 67 63 64 . Received Heat Transfer 3167 | . 48 280 315 378 129 . . 225 . 106 . 45 27 . 594 . . 35 193 355 177 27 9 60 18 46 35 8 . 8 32 17 Effects 1 | . . . . . . . . . . . . . . . . . . . . . . 1 . . . . . . . . . . Interference 1 | . . . . . . . . . . . . . . . . . . . . . . 1 . . . . . . . . . . Siege Activations . | . . . . . . . . . . . . . . . . . . . . . . . . . . . . . . . . . Martial Activations . | . . . . . . . . . . . . . . . . . . . . . . . . . . . . . . . . . Shielding Activations . | . . . . . . . . . . . . . . . . . . . . . . . . . . . . . . . . . Robots Disrupted . | . . . . . . . . . . . . . . . . . . . . . . . . . . . . . . . . . Combat Hostiles . | . . . . . . . . . . . . . . . . . . . . . . . . . . . . . . . . . Robots Corrupted 18 | . . . . . . . . . . . . . . . 1 . . . . . . . . 2 6 9 . . . . . . Combat Hostiles 14 | . . . . . . . . . . . . . . . . . . . . . . . . . 5 9 . . . . . . Parts Fried 70 | . . . . . . . . . . . . . . . 4 . . . . . . . . 9 19 38 . . . . . . Impact Corruptions 4 | . . . . . . . . . . . . . . . 2 . . . . . . . . . . . . . . . . 2 Robots Melted 7 | . . . 4 1 1 . . . . . . . . . . . . . . . . . . . . . . . . 1 . . Combat Hostiles 7 | . . . 4 1 1 . . . . . . . . . . . . . . . . . . . . . . . . 1 . . Parts Melted 63 | . 6 1 13 18 12 . . . . . . . . . 1 . . . . . . . . . . . . 1 4 4 3 . Heat Transferred 19023 | . 1332 766 2395 3553 2393 . . . . . . . . . 407 . . . . 50 . . 481 . 185 . . 1035 1110 962 4354 . Parts Sabotaged . | . . . . . . . . . . . . . . . . . . . . . . . . . . . . . . . . . Parts Stolen . | . . . . . . . . . . . . . . . . . . . . . . . . . . . . . . . . . Parts Stripped . | . . . . . . . . . . . . . . . . . . . . . . . . . . . . . . . . . Power Chain Reactions 1 | . . . . . . . . . . . . . . . 1 . . . . . . . . . . . . . . . . . Alert | -11 -10 -10 -8 -8 -8 -6 -6 -6 -6 -6 -6 -5 -5 -5 -5 -5 -5 -5 -4 -4 -4 -4 -4 -4 -3 -3 -3 -2 -2 -1 -1 -1 ------- Run | Yrd Mat Sub Mat Sto Rec Fac Was Fac Low Low Dat Pro Fac Was Fac Upp Upp War Pro Fac Ext Cet Arc Hub Res Qua Sec Res Tes Acc Com Ac0 Maximum Alert Level 5 | . . . . . . 1 . 2 . . . . . . 3 . . . . 4 5 3 2 4 3 2 2 3 3 2 4 . Low Security (%) 34 | 100 100 . 100 100 100 . 100 84 . . . . 100 100 20 . . . . 14 . . . 13 . . 59 . . . . . Level 1 14 | . . . . . . 100 . 7 . . . . . . 7 . . . . 28 . . 8 17 . 68 30 17 . 2 . . Level 2 24 | . . . . . . . . 8 . . . . . . 67 . . . . 12 41 . 91 18 14 31 9 59 96 97 2 . Level 3 17 | . . . . . . . . . . . . . . . 4 . . . . 24 28 100 . . 85 . . 22 3 . 60 . Level 4 7 | . . . . . . . . . . . . . . . . . . . . 20 24 . . 48 . . . . . . 36 . Level 5 . | . . . . . . . . . . . . . . . . . . . . . 5 . . . . . . . . . . . High Security . | . . . . . . . . . . . . . . . . . . . . . . . . . . . . . . . . . Max Security . | . . . . . . . . . . . . . . . . . . . . . . . . . . . . . . . . . Peak Influence 1641 | . 167 . 107 149 160 301 98 591 . . . . 56 18 826 . . . . 1415 1641 1081 563 1526 849 522 517 890 703 575 1116 . Initial 912 | . . . . 7 52 301 98 40 . . . . 25 . . . . . . 30 692 912 335 162 794 451 123 288 500 358 329 . Average 408 | . 53 . 29 68 33 294 80 108 . . . . 17 6 403 . . . . 643 924 954 502 878 739 337 208 550 593 499 908 . Influence Increases 16884 | . 299 20 394 441 445 250 . 906 90 130 . 180 41 26 1396 95 . 195 280 2041 1582 388 270 1551 389 470 920 1168 460 403 1365 689 Destroy 0b10 Robot/C 7640 | . 180 20 260 320 140 . . 500 60 120 . 160 20 . 620 80 . 40 240 1120 640 160 80 280 220 240 480 520 240 220 680 . Destroy 0b10 Robot/NC 625 | . 20 . 15 . 110 . . 25 . . . . 5 . 75 . . 5 . 45 65 10 15 70 15 5 35 10 30 25 45 . Destroy Leader 1538 | . 42 . 64 80 . . . 112 30 10 . 20 10 . 136 . . . 40 274 66 . . 90 66 102 98 92 26 44 136 . Allied During Kill 1131 | . . . . . . . . . . . . . . . . . . . . . 559 170 95 307 . . . . . . . . Successful Hack 248 | . 12 . 28 7 23 . . 2 . . . . . . 17 . . . . 24 . 9 . 5 24 19 14 . 14 24 26 . Select Force Hacks 180 | . 30 . . . 150 . . . . . . . . . . . . . . . . . . . . . . . . . . . Disable Machine 1485 | . . . 15 30 . . . 165 . . . . . . 165 . . . . 135 15 15 60 330 . 90 135 45 75 30 75 105 Anti-Garrison Action 350 | . . . . . . . . . . . . . . . 150 . . . . . . . . . . . . 150 . . 50 . Destroy Structure 2537 | . . . 12 4 22 . . 42 . . . . 6 26 128 . . . . 368 162 24 20 394 34 14 128 216 60 45 263 569 Advance Influence 250 | . . . . . . 250 . . . . . . . . . . . . . . . . . . . . . . . . . . Partial Spotted 120 | . . . . . . . . . . . . . . . . . . . . . . . . . 30 . 15 15 15 15 15 15 Lose Combat Pursuer 780 | . 15 . . . . . . 60 . . . . . . 105 15 . 150 . 75 75 . . 75 . . 15 120 . . 75 . Influence Decreases 16205 | . 299 18 378 323 457 93 223 376 435 207 166 140 81 26 573 591 327 195 232 676 1366 1179 643 503 1099 1052 628 791 752 486 524 1366 Entered New Map 7014 | . . . 2 11 84 73 183 18 219 47 166 . 15 . . 305 63 . . 18 721 717 503 303 719 352 98 225 390 240 186 1356 Time Decay 8667 | . 299 18 320 302 325 20 40 358 206 160 . 140 66 26 533 286 264 195 212 638 595 342 140 100 380 690 530 556 362 246 318 . Lost Part 246 | . . . 56 10 30 . . . 10 . . . . . 40 . . . 20 20 10 . . . . 10 . 10 . . 20 10 Lost Ally 260 | . . . . . . . . . . . . . . . . . . . . . 40 120 . 100 . . . . . . . . Purge Threat 18 | . . . . . 18 . . . . . . . . . . . . . . . . . . . . . . . . . . . Squads Dispatched 76 | . 2 . 2 1 . . . 7 . . . . . . 14 . . . . 18 2 . . 2 5 . 6 . 3 6 8 . Investigation 5 | . 1 . . . . . . . . . . . . . 2 . . . . . . . . . . . . . . . 2 . Extermination 22 | . . . . . . . . 4 . . . . . . 4 . . . . 3 . . . . . . 4 . 3 2 2 . Reinforcement 29 | . 1 . . 1 . . . 2 . . . . . . 3 . . . . 9 1 . . 2 5 . 2 . . . 3 . Assault 12 | . . . . . . . . 1 . . . . . . 5 . . . . 3 1 . . . . . . . . 1 1 . Garrison 8 | . . . 2 . . . . . . . . . . . . . . . . 3 . . . . . . . . . 3 . . Intercept . | . . . . . . . . . . . . . . . . . . . . . . . . . . . . . . . . . Searches Triggered . | . . . . . . . . . . . . . . . . . . . . . . . . . . . . . . . . . Construction Impeded 3 | . . . . . . . . 1 . . . . . . . . . . . 1 . . . 1 . . . . . . . . Haulers Reinforced 4 | . . . . . . . . . . . . . . . . . . . . 2 . . . . 2 . . . . . . . Active Scanning Responses . | . . . . . . . . . . . . . . . . . . . . . . . . . . . . . . . . . Cargo Convoy Interrupts 1 | . . . . . . . . . . . . . . . . . . . . 1 . . . . . . . . . . . . Stealth | -11 -10 -10 -8 -8 -8 -6 -6 -6 -6 -6 -6 -5 -5 -5 -5 -5 -5 -5 -4 -4 -4 -4 -4 -4 -3 -3 -3 -2 -2 -1 -1 -1 --------- Run | Yrd Mat Sub Mat Sto Rec Fac Was Fac Low Low Dat Pro Fac Was Fac Upp Upp War Pro Fac Ext Cet Arc Hub Res Qua Sec Res Tes Acc Com Ac0 Distress Signals 47 | . . . 1 . 1 . . 1 . . . . . . 3 . . . . 4 1 2 . 2 6 . 4 8 1 . 13 . Communications Jammed 239 | . . . . . . . . . . . . . . . . . . . . 2 4 . . 222 . . . . . . 11 . Distress Signals 229 | . . . . . . . . . . . . . . . . . . . . . 4 . . 216 . . . . . . 9 . Times Spotted 650 | . 16 8 14 18 8 . 6 33 3 6 . 8 1 6 47 5 . 87 12 76 39 10 11 19 21 14 34 40 13 13 45 37 Peak Tracking Total 15 | . 5 2 3 3 4 . 6 6 1 3 . 4 1 5 8 2 . 15 5 6 6 5 1 6 4 3 5 5 6 4 10 4 Tactical Retreats 30 | . 1 . . . . . . 2 . . . . . . 5 1 . 4 . 3 5 . . 2 . . 1 5 . . 1 . Traps | -11 -10 -10 -8 -8 -8 -6 -6 -6 -6 -6 -6 -5 -5 -5 -5 -5 -5 -5 -4 -4 -4 -4 -4 -4 -3 -3 -3 -2 -2 -1 -1 -1 ------- Run | Yrd Mat Sub Mat Sto Rec Fac Was Fac Low Low Dat Pro Fac Was Fac Upp Upp War Pro Fac Ext Cet Arc Hub Res Qua Sec Res Tes Acc Com Ac0 Traps Triggered 16 | . . . 2 . . 1 . . . . . . 1 . 5 . . . . 2 . . . 1 . . . . . . 4 . Indirectly 1 | . . . . . . . . . . . . . . . . . . . . . . . . 1 . . . . . . . . Trap Hack Attempts . | . . . . . . . . . . . . . . . . . . . . . . . . . . . . . . . . . Triggered . | . . . . . . . . . . . . . . . . . . . . . . . . . . . . . . . . . Disarmed . | . . . . . . . . . . . . . . . . . . . . . . . . . . . . . . . . . Reprogrammed . | . . . . . . . . . . . . . . . . . . . . . . . . . . . . . . . . . Reused . | . . . . . . . . . . . . . . . . . . . . . . . . . . . . . . . . . Traps Extracted . | . . . . . . . . . . . . . . . . . . . . . . . . . . . . . . . . . Installed . | . . . . . . . . . . . . . . . . . . . . . . . . . . . . . . . . . Triggered . | . . . . . . . . . . . . . . . . . . . . . . . . . . . . . . . . . Machines | -11 -10 -10 -8 -8 -8 -6 -6 -6 -6 -6 -6 -5 -5 -5 -5 -5 -5 -5 -4 -4 -4 -4 -4 -4 -3 -3 -3 -2 -2 -1 -1 -1 ---------- Run | Yrd Mat Sub Mat Sto Rec Fac Was Fac Low Low Dat Pro Fac Was Fac Upp Upp War Pro Fac Ext Cet Arc Hub Res Qua Sec Res Tes Acc Com Ac0 Machines Disabled 111 | . . . 1 2 . . . 11 . . . . . . 12 . . 2 . 9 3 1 4 22 . 6 9 4 6 2 7 10 Max in Single Turn 19 | . . . 1 1 . . . 2 . . . . . . 2 . . 1 . 2 . 1 . 19 . 1 1 1 1 1 2 1 Garrison Access 7 | . . . 1 . . . . 1 . . . . . . 1 . . . . . . . . . . . . 3 . 1 . . Phase Generator 1 | . . . . . . . . . . . . . . . . . . . . . . . . . . . . . . . 1 . Network Hub 1 | . . . . . . . . . . . . . . . . . . . . . . . . 1 . . . . . . . . Machines Repaired . | . . . . . . . . . . . . . . . . . . . . . . . . . . . . . . . . . Machines Dismantled . | . . . . . . . . . . . . . . . . . . . . . . . . . . . . . . . . . Machines Sabotaged . | . . . . . . . . . . . . . . . . . . . . . . . . . . . . . . . . . Overloaded Fab Kills . | . . . . . . . . . . . . . . . . . . . . . . . . . . . . . . . . . Hacking | -11 -10 -10 -8 -8 -8 -6 -6 -6 -6 -6 -6 -5 -5 -5 -5 -5 -5 -5 -4 -4 -4 -4 -4 -4 -3 -3 -3 -2 -2 -1 -1 -1 --------- Run | Yrd Mat Sub Mat Sto Rec Fac Was Fac Low Low Dat Pro Fac Was Fac Upp Upp War Pro Fac Ext Cet Arc Hub Res Qua Sec Res Tes Acc Com Ac0 Machines Accessed 73 | . 4 1 5 2 11 . . 7 . . 4 . . . 8 1 1 1 . 6 . 1 . 1 4 4 3 1 1 4 2 1 Terminals 36 | . 3 . 4 1 4 . . 3 . . . . . . 3 . . . . 3 . 1 . 1 2 2 3 . 1 3 2 . Fabricators 2 | . . . . . . . . . . . . . . . 1 . . . . 1 . . . . . . . . . . . . Repair Stations 1 | . . . . . . . . 1 . . . . . . . . . . . . . . . . . . . . . . . . Recycling Units 8 | . 1 . . . 6 . . 1 . . . . . . . . . . . . . . . . . . . . . . . . Scanalyzers 6 | . . . . . . . . 1 . . . . . . 2 . . . . 1 . . . . 1 1 . . . . . . Garrison Access 10 | . . . 1 1 . . . 1 . . . . . . 2 . . . . 1 . . . . 1 1 . 1 . 1 . . Total Hacks 186 | . 10 4 12 3 19 . . 18 . . 31 . . . 17 1 1 1 . 11 . 3 . 3 10 12 4 3 5 8 6 4 Successful 104 | . 6 4 5 1 16 . . 8 . . 31 . . . 4 1 1 1 . 6 . 1 . 1 3 2 2 . 2 2 3 4 Failed 80 | . 4 . 6 2 3 . . 10 . . . . . . 12 . . . . 5 . 2 . 2 7 10 2 3 3 6 3 . Catastrophic 21 | . . . 2 1 . . . 4 . . . . . . 3 . . . . 4 . . . . 2 2 . . . 3 . . Database Lockouts 2 | . . . 1 . . . . . . . . . . . 1 . . . . . . . . . . . . . . . . . Manual 64 | . 10 . 10 1 11 . . 6 . . . . . . 5 . . . . 4 . 1 . 3 1 1 . . 3 4 4 . Terminals 82 | . 8 . 10 2 10 . . 6 . . . . . . 7 . . . . 5 . 3 . 3 5 2 4 . 5 6 6 . Fabricators 3 | . . . . . . . . . . . . . . . 2 . . . . 1 . . . . . . . . . . . . Repair Stations 3 | . . . . . . . . 3 . . . . . . . . . . . . . . . . . . . . . . . . Recycling Units 11 | . 2 . . . 7 . . 2 . . . . . . . . . . . . . . . . . . . . . . . . Scanalyzers 21 | . . . . . . . . 5 . . . . . . 4 . . . . 4 . . . . 3 5 . . . . . . Garrison Access 22 | . . . 2 1 . . . 2 . . . . . . 4 . . . . 1 . . . . 2 5 . 3 . 2 . . Terminal Hacks 64 | . 4 4 3 1 6 . . . . . 31 . . . . 1 1 1 . 1 . 1 . . . 1 2 . 1 . 2 4 Record 15 | . . 4 . . . . . . . . 11 . . . . . . . . . . . . . . . . . . . . . Part Schematic 14 | . . . 1 . 2 . . . . . 11 . . . . . . . . . . . . . . . . . . . . . Robot Schematic 6 | . . . . . . . . . . . 6 . . . . . . . . . . . . . . . . . . . . . Robot Analysis 3 | . 3 . . . . . . . . . . . . . . . . . . . . . . . . . . . . . . . Prototype ID Bank 3 | . . . . . . . . . . . 3 . . . . . . . . . . . . . . . . . . . . . Open Door 8 | . . . . 1 . . . . . . . . . . . 1 1 1 . . . 1 . . . 1 1 . . . 1 . Level Access Points 1 | . . . . . . . . . . . . . . . . . . . . . . . . . . . . . 1 . . . Branch Access Points 2 | . . . 1 . . . . . . . . . . . . . . . . 1 . . . . . . . . . . . . Recycling Unit Index 1 | . 1 . . . . . . . . . . . . . . . . . . . . . . . . . . . . . . . Unreport Threat 1 | . . . . . 1 . . . . . . . . . . . . . . . . . . . . . . . . . . . Locate Traps 1 | . . . . . . . . . . . . . . . . . . . . . . . . . . . . . . . 1 . Registered Prototypes 1 | . . . . . 1 . . . . . . . . . . . . . . . . . . . . . . . . . . . Zone Layout 2 | . . . 1 . . . . . . . . . . . . . . . . . . . . . . . 1 . . . . . Release Object 2 | . . . . . 2 . . . . . . . . . . . . . . . . . . . . . . . . . . . Gate Test 138-A 1 | . . . . . . . . . . . . . . . . . . . . . . . . . . . . . . . . 1 Gate Test 138-B 1 | . . . . . . . . . . . . . . . . . . . . . . . . . . . . . . . . 1 Gate Test 138-C 2 | . . . . . . . . . . . . . . . . . . . . . . . . . . . . . . . . 2 Fabricator Hacks 2 | . . . . . . . . . . . . . . . 2 . . . . . . . . . . . . . . . . . Load Schematic 1 | . . . . . . . . . . . . . . . 1 . . . . . . . . . . . . . . . . . Build 1 | . . . . . . . . . . . . . . . 1 . . . . . . . . . . . . . . . . . Repair Station Hacks 2 | . . . . . . . . 2 . . . . . . . . . . . . . . . . . . . . . . . . Scan Component 1 | . . . . . . . . 1 . . . . . . . . . . . . . . . . . . . . . . . . Repair 1 | . . . . . . . . 1 . . . . . . . . . . . . . . . . . . . . . . . . Recycling Unit Hacks 1 | . . . . . . . . 1 . . . . . . . . . . . . . . . . . . . . . . . . Retrieve Matter 1 | . . . . . . . . 1 . . . . . . . . . . . . . . . . . . . . . . . . Scanalyzer 11 | . . . . . . . . 3 . . . . . . 1 . . . . 4 . . . . 2 1 . . . . . . Retrieve Study 11 | . . . . . . . . 3 . . . . . . 1 . . . . 4 . . . . 2 1 . . . . . . Garrison Access Hacks 3 | . . . 1 . . . . 1 . . . . . . . . . . . . . . . . . . . . . 1 . . Seal Access 3 | . . . 1 . . . . 1 . . . . . . . . . . . . . . . . . . . . . 1 . . Unauthorized Hacks 21 | . 2 . 1 . 10 . . 1 . . . . . . 1 . . . . 1 . . . 1 1 . . . 1 1 1 . Terminals 13 | . 1 . 1 . 3 . . 1 . . . . . . 1 . . . . 1 . . . 1 1 . . . 1 1 1 . Botnet 13 | . 1 . 1 . 3 . . 1 . . . . . . 1 . . . . 1 . . . 1 1 . . . 1 1 1 . Fabricators . | . . . . . . . . . . . . . . . . . . . . . . . . . . . . . . . . . Repair Stations . | . . . . . . . . . . . . . . . . . . . . . . . . . . . . . . . . . Recycling Units 8 | . 1 . . . 7 . . . . . . . . . . . . . . . . . . . . . . . . . . . Reject 1 | . . . . . 1 . . . . . . . . . . . . . . . . . . . . . . . . . . . Mask 1 | . . . . . 1 . . . . . . . . . . . . . . . . . . . . . . . . . . . Tunnel 6 | . 1 . . . 5 . . . . . . . . . . . . . . . . . . . . . . . . . . . Scanalyzers . | . . . . . . . . . . . . . . . . . . . . . . . . . . . . . . . . . Garrison Access . | . . . . . . . . . . . . . . . . . . . . . . . . . . . . . . . . . Data Cores Recovered 7 | . . . . . . . . 1 . . . . . . . . . . . . 1 . . 1 . . . . 1 2 1 . Used 2 | . . . . . . . . 1 . . . . . . . . . . . . . . . . . . . . . . 1 . Hacking Detections 43 | . 2 . 3 3 2 . . 4 . . . . . . 8 . . . . 5 . 1 . 1 3 2 2 1 1 3 2 . Full Trace Events 2 | . . . . . . . . . . . . . . . 2 . . . . . . . . . . . . . . . . . Feedback Events . | . . . . . . . . . . . . . . . . . . . . . . . . . . . . . . . . . Feedback Blocked . | . . . . . . . . . . . . . . . . . . . . . . . . . . . . . . . . . Robot Schematics Acquired 6 | . . . . . . . . . . . 6 . . . . . . . . . . . . . . . . . . . . . Robots Built . | . . . . . . . . . . . . . . . . . . . . . . . . . . . . . . . . . Authchips . | . . . . . . . . . . . . . . . . . . . . . . . . . . . . . . . . . Time . | . . . . . . . . . . . . . . . . . . . . . . . . . . . . . . . . . Total Robot Build Rating . | . . . . . . . . . . . . . . . . . . . . . . . . . . . . . . . . . Part Schematics Acquired 14 | . . . 1 . 2 . . . . . 11 . . . . . . . . . . . . . . . . . . . . . Parts Built 2 | . . . . . . . . . . . . . . . 2 . . . . . . . . . . . . . . . . . Authchips . | . . . . . . . . . . . . . . . . . . . . . . . . . . . . . . . . . Time 95 | . . . . . . . . . . . . . . . 95 . . . . . . . . . . . . . . . . . Total Part Build Rating 10 | . . . . . . . . . . . . . . . 10 . . . . . . . . . . . . . . . . . Part Studies Acquired 11 | . . . . . . . . 3 . . . . . . 1 . . . . 4 . . . . 2 1 . . . . . . Parts Repaired 1 | . . . . . . . . 1 . . . . . . . . . . . . . . . . . . . . . . . . Time 62 | . . . . . . . . 62 . . . . . . . . . . . . . . . . . . . . . . . . Parts Recycled . | . . . . . . . . . . . . . . . . . . . . . . . . . . . . . . . . . Recycled Matter . | . . . . . . . . . . . . . . . . . . . . . . . . . . . . . . . . . Retrieved Matter . | . . . . . . . . . . . . . . . . . . . . . . . . . . . . . . . . . Retrieved Components . | . . . . . . . . . . . . . . . . . . . . . . . . . . . . . . . . . Parts Scanalyzed . | . . . . . . . . . . . . . . . . . . . . . . . . . . . . . . . . . Part Schematics Acquired . | . . . . . . . . . . . . . . . . . . . . . . . . . . . . . . . . . Parts Damaged . | . . . . . . . . . . . . . . . . . . . . . . . . . . . . . . . . . Bothacking | -11 -10 -10 -8 -8 -8 -6 -6 -6 -6 -6 -6 -5 -5 -5 -5 -5 -5 -5 -4 -4 -4 -4 -4 -4 -3 -3 -3 -2 -2 -1 -1 -1 ------------ Run | Yrd Mat Sub Mat Sto Rec Fac Was Fac Low Low Dat Pro Fac Was Fac Upp Upp War Pro Fac Ext Cet Arc Hub Res Qua Sec Res Tes Acc Com Ac0 Used RIF Installer . | . . . . . . . . . . . . . . . . . . . . . . . . . . . . . . . . . Robots Hacked . | . . . . . . . . . . . . . . . . . . . . . . . . . . . . . . . . . Non-combat . | . . . . . . . . . . . . . . . . . . . . . . . . . . . . . . . . . Combat . | . . . . . . . . . . . . . . . . . . . . . . . . . . . . . . . . . Robot Hacks Applied . | . . . . . . . . . . . . . . . . . . . . . . . . . . . . . . . . . Relay Couplers Released 8 | . . . . . . . . . . . . . . . . . . . . 7 . . . . . . . 1 . . . . Machine Destruction 1 | . . . . . . . . . . . . . . . . . . . . . . . . . . . . 1 . . . . Programmers 7 | . . . . . . . . . . . . . . . . . . . . 7 . . . . . . . . . . . . Fabnet Peak Effective % . | . . . . . . . . . . . . . . . . . . . . . . . . . . . . . . . . . Robots Rewired 10 | . . . . . . . . . . . . . . . . . . . . . 10 . . . . . . . . . . . Allies Hacked . | . . . . . . . . . . . . . . . . . . . . . . . . . . . . . . . . . Hacks Repelled . | . . . . . . . . . . . . . . . . . . . . . . . . . . . . . . . . . Allies | -11 -10 -10 -8 -8 -8 -6 -6 -6 -6 -6 -6 -5 -5 -5 -5 -5 -5 -5 -4 -4 -4 -4 -4 -4 -3 -3 -3 -2 -2 -1 -1 -1 -------- Run | Yrd Mat Sub Mat Sto Rec Fac Was Fac Low Low Dat Pro Fac Was Fac Upp Upp War Pro Fac Ext Cet Arc Hub Res Qua Sec Res Tes Acc Com Ac0 Total Allies 26 | . . . . . . . . . . . . . . . . . . . . . 21 5 . . . . . . . . . . Largest Group 16 | . . . . . . . . . . . . . . . . . . . . . 16 16 13 11 . . . . . . . . Highest-Rated Group 922 | . . . . . . . . . . . . . . . . . . . . . 785 922 922 734 . . . . . . . . Highest-Rated Ally 159 | . . . . . . . . . . . . . . . . . . . . . 159 153 153 96 . . . . . . . . Total Orders . | . . . . . . . . . . . . . . . . . . . . . . . . . . . . . . . . . Ally Attacks 251 | . . . . . . . . . . . . . . . . . . . . . 93 60 22 76 . . . . . . . . Total Damage 8407 | . . . . . . . . . . . . . . . . . . . . . 2940 1361 860 3246 . . . . . . . . Kills 39 | . . . . . . . . . . . . . . . . . . . . . 17 5 3 14 . . . . . . . . Allies Corrupted 2 | . . . . . . . . . . . . . . . . . . . . . . . . 2 . . . . . . . . Allies Melted 4 | . . . . . . . . . . . . . . . . . . 2 . . . . . . . . . 1 . . 1 . Intel | -11 -10 -10 -8 -8 -8 -6 -6 -6 -6 -6 -6 -5 -5 -5 -5 -5 -5 -5 -4 -4 -4 -4 -4 -4 -3 -3 -3 -2 -2 -1 -1 -1 ------- Run | Yrd Mat Sub Mat Sto Rec Fac Was Fac Low Low Dat Pro Fac Was Fac Upp Upp War Pro Fac Ext Cet Arc Hub Res Qua Sec Res Tes Acc Com Ac0 Active Infowar (turns) 20059 | . . . . . . 5 86 1670 421 332 41 351 194 82 1890 628 785 1147 128 1331 1373 . 221 142 699 1839 1065 1531 777 527 2391 403 Optics 9001 | . . . . . . . . . 230 332 41 351 194 82 1890 628 785 1147 . . . . . . . . . . . 527 2391 403 Sensors 15244 | . . . . . . 5 86 1663 369 244 40 219 194 72 1168 544 785 497 128 1217 1355 . 217 57 691 1832 1015 1528 777 516 25 . Traps 10329 | . . . . . . . . 644 . . . . . . 754 543 783 495 . 772 1077 . 217 47 593 1404 789 942 73 526 670 . Machine Analysis 531 | . . . . . . . . . . . . . 107 82 342 . . . . . . . . . . . . . . . . . Cloaking 770 | . . . . . . . . . . . . . . . . . . 2 . . . . . . . . . . . 219 549 . Jamming 389 | . . . . . . . . . . . . . . . . . . . . 43 32 . . 85 . . . . . . 229 . Robot Analysis Total 3 | . 3 . . . . . . . . . . . . . . . . . . . . . . . . . . . . . . . Derelict Logs Recovered 8 | . . 2 . . . . . . 1 1 . . . . . 2 1 . 1 . . . . . . . . . . . . . Drone Launches . | . . . . . . . . . . . . . . . . . . . . . . . . . . . . . . . . . Drone Recoveries . | . . . . . . . . . . . . . . . . . . . . . . . . . . . . . . . . . Exploration | -11 -10 -10 -8 -8 -8 -6 -6 -6 -6 -6 -6 -5 -5 -5 -5 -5 -5 -5 -4 -4 -4 -4 -4 -4 -3 -3 -3 -2 -2 -1 -1 -1 ------------- Run | Yrd Mat Sub Mat Sto Rec Fac Was Fac Low Low Dat Pro Fac Was Fac Upp Upp War Pro Fac Ext Cet Arc Hub Res Qua Sec Res Tes Acc Com Ac0 Turns Passed 31562 | 34 954 1174 915 745 2707 43 86 1828 436 332 41 351 194 82 1890 628 785 1349 571 2267 1898 777 287 215 899 2790 1491 1637 835 527 2391 403 Spaces Moved 25824 | 43 404 618 408 330 1242 47 122 1572 547 504 76 549 292 93 1115 449 661 822 404 1218 1081 441 197 108 913 1724 1421 2625 1002 936 3134 726 Core 147 | 39 108 . . . . . . . . . . . . . . . . . . . . . . . . . . . . . . . Treads 11746 | 4 296 63 146 330 856 . . 784 98 . . . . . 404 103 . 317 404 954 1000 405 . . . 179 . 1922 1002 936 1543 . Legs 4818 | . . . 1 . . . . . 449 504 76 549 292 93 476 . . 182 . 4 . 36 197 108 96 1523 108 124 . . . . Wheels 1068 | . . 555 261 . 252 . . . . . . . . . . . . . . . . . . . . . . . . . . . Hover 1661 | . . . . . 134 47 122 788 . . . . . . 235 . . . . . . . . . 335 . . . . . . . Flight 6384 | . . . . . . . . . . . . . . . . 346 661 323 . 260 81 . . . 482 22 1313 579 . . 1591 726 Fastest Speed 32 | 50 50 155 117 162 68 68 68 68 52 52 52 52 52 52 52 64 117 64 120 113 113 111 111 111 75 75 68 41 41 41 32 32 Average Speed 85 | 63 164 168 165 163 133 68 68 68 54 52 52 52 52 52 116 116 117 111 120 141 113 127 111 111 78 121 72 48 41 41 36 32 Slowest Speed 340 | 160 240 240 340 243 330 68 68 68 68 52 52 52 52 52 183 117 117 141 120 211 113 141 111 111 111 122 122 76 41 41 41 32 Overloaded Moves . | . . . . . . . . . . . . . . . . . . . . . . . . . . . . . . . . . Propulsion Burnouts . | . . . . . . . . . . . . . . . . . . . . . . . . . . . . . . . . . Robots Hopped 3 | . . . . . . . . . . . . . . . . . . . . . . . . . . . 2 . . . 1 . Potential Cave-ins 3 | . . . . . . . . . . . . . . . . . . . . . . . . . . . 2 1 . . . . Cave-ins Triggered 2 | . . . . . . . . . . . . . . . . . . 1 . . . . . . . . 1 . . . . . Teleports 2 | . . . . . . . . . . . . . . . . . . . . . . . . . . . 1 . . . 1 . Exploration Rate (%) 58 | 3 70 39 25 71 98 1 75 35 74 73 73 62 7 76 39 73 79 81 66 31 85 79 88 21 30 95 52 70 89 30 84 43 Regions Visited 32 Branch Regions 20 Pre-discovered Areas 8 | . 1 1 . . 5 . . . . . 1 . . . . . . . . . . . . . . . . . . . . . Known Exits Taken 16 | . . . 1 . . . . . . . . . . . 1 1 1 . 1 1 1 1 1 1 1 1 1 1 1 1 . . Unknown Exits Taken 12 | 1 1 1 . 1 1 . . 1 1 1 1 1 . . . . . 1 . . . . . . . . . . . . 1 . Scrap Searched 21 | . . 6 . . . . . . 4 3 . 2 . . . 2 1 . 3 . . . . . . . . . . . . . Spaces Dug 138 | . . . 1 1 1 . . 12 . 1 . . . . 24 3 9 4 . 30 . 1 . 1 1 . 12 8 8 6 3 12 Terrain Destroyed 1181 | . . 3 10 1 20 . . 40 3 13 . 8 4 16 69 14 9 6 4 199 85 12 2 210 18 6 55 86 24 15 103 146 Melee 2 | . . . 1 . 1 . . . . . . . . . . . . . . . . . . . . . . . . . . . Projectile 793 | . . 3 9 1 19 . . 39 3 13 . 8 4 16 69 14 9 6 1 105 85 12 2 20 18 6 55 52 24 15 39 146 AOE 382 | . . . . . . . . . . . . . . . . . . . . 94 . . . 190 . . . 34 . . 64 . Terrain Rammed . | . . . . . . . . . . . . . . . . . . . . . . . . . . . . . . . . . Walls Destroyed . | . . . . . . . . . . . . . . . . . . . . . . . . . . . . . . . . . Machines Disabled . | . . . . . . . . . . . . . . . . . . . . . . . . . . . . . . . . . Actions | -11 -10 -10 -8 -8 -8 -6 -6 -6 -6 -6 -6 -5 -5 -5 -5 -5 -5 -5 -4 -4 -4 -4 -4 -4 -3 -3 -3 -2 -2 -1 -1 -1 --------- Run | Yrd Mat Sub Mat Sto Rec Fac Was Fac Low Low Dat Pro Fac Was Fac Upp Upp War Pro Fac Ext Cet Arc Hub Res Qua Sec Res Tes Acc Com Ac0 Total 34069 | 48 640 709 570 447 2230 58 124 2244 672 550 76 591 332 114 1572 541 668 1250 449 1639 1702 638 253 169 1054 2397 1784 2958 1400 1054 4289 847 Wait 5387 | . 199 51 48 46 838 1 1 468 96 21 . 17 25 9 227 69 3 363 . 153 389 169 27 4 49 464 166 153 292 81 952 6 Move 25788 | 42 403 617 407 329 1241 47 121 1571 546 503 75 548 292 92 1114 448 660 821 403 1217 1080 440 196 107 912 1724 1415 2624 1001 935 3131 726 Hop 3 | . . . . . . . . . . . . . . . . . . . . . . . . . . . 2 . . . 1 . Pick Up 375 | 2 6 10 22 3 36 6 2 35 6 1 . . 3 1 22 3 . 10 1 15 12 3 3 . 10 56 16 44 22 4 16 5 Fast Attach 105 | 3 3 3 10 5 1 . . 1 . . . . 2 . 10 1 . 9 1 7 . . 2 3 . 5 12 10 8 . 4 5 Attach 63 | . 2 1 12 1 1 4 . 1 3 . . . 1 . 5 . . 5 2 4 2 . . . 1 2 3 3 2 2 5 1 Detach 27 | 1 . 2 2 1 1 . . 2 . . . . 1 . 4 . . 6 . 3 . . . 2 . . . . . . 2 . Swap 390 | . 1 4 13 11 1 . . 34 5 4 1 3 . 1 30 8 2 1 4 38 31 1 5 12 35 32 59 21 16 6 9 2 Drop 401 | . . . 18 11 47 . . 40 6 . . 1 4 . 24 2 . 20 . 20 9 3 5 3 9 59 19 53 27 2 14 5 Fire 1396 | . 25 21 37 38 62 . . 92 10 21 . 22 4 11 134 10 3 15 38 181 57 22 15 38 38 55 91 50 32 24 153 97 Melee 4 | . . . 1 2 1 . . . . . . . . . . . . . . . . . . . . . . . . . . . Ram . | . . . . . . . . . . . . . . . . . . . . . . . . . . . . . . . . . Kick . | . . . . . . . . . . . . . . . . . . . . . . . . . . . . . . . . . Crush 2 | . 1 . . . . . . . . . . . . . . . . . . 1 . . . . . . . . . . . . Escape Stasis 3 | . . . . . . . . . . . . . . . 2 . . . . . . . . . . . 1 . . . . . Rewire 125 | . . . . . 1 . . . . . . . . . . . . . . . 122 . . . . . . . . . 2 . Trap . | . . . . . . . . . . . . . . . . . . . . . . . . . . . . . . . . . Miscellaneous . | . . . . . . . . . . . . . . . . . . . . . . . . . . . . . . . . . Route ------- -11/Scrapyard -10/Materials (discovered 4 exits: [*Mat x2] / [*Min] / *Sub) -10/Subcaves -8/Materials -8/Storage (discovered 2 exits: [*Fac] / *Rec) -8/Recycling -6/Factory -6/Waste -6/Factory (discovered 3 exits: [*Fac x2] / [*Low]) -6/Lower Caves -6/Lower Caves (discovered 2 exits: [*Fac] / *Dat) -6/Data Miner -5/Proximity Caves -5/Factory -5/Waste -5/Factory (discovered 2 exits: *Fac / *Upp) -5/Upper Caves -5/Upper Caves (discovered 2 exits: *Fac / *War) -5/Warlord -4/Proximity Caves -4/Factory (discovered 6 exits: *Res / *Upp x2 / *Ext x2 / Arm) -4/Extension (discovered 2 exits: *Res / *Cet) -4/Cetus (discovered 2 exits: *Res / *Arc) -4/Archives (discovered 3 exits: *Res / *Hub x2) -4/Hub_04(d) -3/Research (discovered 2 exits: Res / *Qua) -3/Quarantine (discovered 3 exits: *Res / *Sec / [*Frg]) -3/Section 7 -2/Research (discovered 2 exits: *Acc / *Tes) -2/Testing -1/Access -1/Command (discovered 3 exits: [*Sur x2] / *Ac0) -1/Access_0 Subspace History --------- Turn | Location | Event 7 | -11/Scrapyard | Discovered new exit (range 16) 35 | -11/Scrapyard | Entered Materials 219 | -10/Materials | Discovered new exit (range 11) 318 | -10/Materials | Build established: Mutant 356 | -10/Materials | Discovered new exit (range 14) 628 | -10/Materials | Discovered new exit (range 16) 961 | -10/Materials | Discovered new exit (range 8) 989 | -10/Materials | Entered Subcaves 990 | -10/Subcaves | Approached by a straggling Scientist 1155 | -10/Subcaves | Core integrity fell below 50% 1522 | -10/Subcaves | Build established: Scavenger-Mutant 1957 | -10/Subcaves | Visited Clippyterm 1962 | -10/Subcaves | Learned Factory stockpile data 1962 | -10/Subcaves | Learned Factory garrison access intel 2064 | -10/Subcaves | Learned Materials garrison access intel 2137 | -10/Subcaves | Build established: Mutant 2147 | -10/Subcaves | Discovered new exit (range 10) 2163 | -10/Subcaves | Entered Materials 2163 | -8/Materials | Evolved 4 slots: Propulsion x2, Utility x1, Weapon x1 2164 | -8/Materials | Loaded intel: 1 garrison access location 2267 | -8/Materials | Lost 4 parts (1p2n1u) 2431 | -8/Materials | Identified exit to Storage 2591 | -8/Materials | Central database locked down 2677 | -8/Materials | Garrison activated, responded to threat 3078 | -8/Materials | Entered Storage 3220 | -8/Storage | Build established: Scavenger-Gunner 3529 | -8/Storage | Discovered new exit (range 13) 3771 | -8/Storage | Build established: Gunner 3816 | -8/Storage | Used back door to open Recycling access 3816 | -8/Storage | Discovered new exit (range 5) 3823 | -8/Storage | Entered Recycling 3978 | -8/Recycling | Lost 3 parts (1p1n1u) 4201 | -8/Recycling | Discovered new exit (range 15) 4825 | -8/Recycling | Entered Scraplab 4834 | -8/Recycling | Found Prototype Device 4834 | -8/Recycling | Identified Scrap Engine 5321 | -8/Recycling | Build established: Construct 6530 | -8/Recycling | Entered Factory 6530 | -6/Factory | Evolved 4 slots: Power x1, Utility x3 6532 | -6/Factory | Loaded intel: 4 garrison access locations 6573 | -6/Factory | Sucked down chute 6573 | -6/Factory | Entered Waste 6605 | -6/Waste | Spotted C-40 Crusher 6623 | -6/Waste | Spotted C-40 Crusher 6631 | -6/Waste | Spotted C-40 Crusher 6636 | -6/Waste | Spotted C-40 Crusher 6638 | -6/Waste | Spotted C-40 Crusher 6639 | -6/Waste | Spotted C-40 Crusher 6651 | -6/Waste | Discovered new exit (range 13) 6659 | -6/Waste | Entered Factory 6810 | -6/Factory | Repaired Adv. Cryofiber Web 7531 | -6/Factory | Discovered new exit (range 8) 7545 | -6/Factory | Discovered new exit (range 11) 8378 | -6/Factory | Destroyed 9 combat bots 8409 | -6/Factory | First assault squad dispatched 8456 | -6/Factory | Discovered new exit (range 11) 8487 | -6/Factory | Entered Lower Caves 8744 | -6/Lower Caves | Learned Factory emergency access door positions 8778 | -6/Lower Caves | Discovered new exit (range 3) 8832 | -6/Lower Caves | Encountered a Warlord checkpoint 8923 | -6/Lower Caves | Entered another Lower Caves area 8955 | -6/Lower Caves | Discovered new exit (range 5) 8979 | -6/Lower Caves | Learned Factory terminal intel 8982 | -6/Lower Caves | Encountered a Warlord checkpoint 9136 | -6/Lower Caves | Attracted the attention of an 0b10 checkpoint 9239 | -6/Lower Caves | Discovered new exit (range 11) 9255 | -6/Lower Caves | Entered Data Miner 9255 | -6/Data Miner | Discovered new exit (range 6) 9262 | -6/Data Miner | Met Data Miner 9274 | -6/Data Miner | Acquired the access code to Warlord's prototype stash 9274 | -6/Data Miner | Learned location of Section 7 (-3) 9283 | -6/Data Miner | Received God Mode back door access code from Data Miner 9296 | -6/Data Miner | Entered Proximity Caves 9374 | -5/Proximity Caves | Attracted the attention of an 0b10 checkpoint 9589 | -5/Proximity Caves | Discovered new exit (range 5) 9647 | -5/Proximity Caves | Entered Factory 9647 | -5/Factory | Evolved 2 slots: Propulsion x1, Utility x1 9649 | -5/Factory | Loaded intel: 26 terminal locations 9714 | -5/Factory | Discovered new exit (range 6) 9841 | -5/Factory | Sucked down chute 9841 | -5/Factory | Entered Waste 9849 | -5/Waste | Spotted C-40 Crusher 9855 | -5/Waste | Spotted C-40 Crusher 9856 | -5/Waste | Spotted C-40 Crusher 9858 | -5/Waste | Spotted C-40 Crusher 9866 | -5/Waste | Spotted C-40 Crusher 9878 | -5/Waste | Destroyed C-40 Crusher 9893 | -5/Waste | Spotted C-40 Crusher 9905 | -5/Waste | Discovered new exit (range 14) 9923 | -5/Waste | Entered Factory 10359 | -5/Factory | Lost 4 parts (2p2u) 10375 | -5/Factory | Destroyed 12 combat bots 10823 | -5/Factory | First assault squad dispatched 10888 | -5/Factory | Discovered new exit (range 3) 10891 | -5/Factory | Identified exit to Factory 11062 | -5/Factory | Central database locked down 11186 | -5/Factory | Spotted B-75 Beast 11348 | -5/Factory | Fabricated Imp. Cryofiber Web (x2) 11802 | -5/Factory | Discovered new exit (range 4) 11808 | -5/Factory | Identified exit to Upper Caves 11813 | -5/Factory | Entered Upper Caves 12018 | -5/Upper Caves | Spotted B-75 Beast 12285 | -5/Upper Caves | Attracted the attention of an 0b10 checkpoint 12372 | -5/Upper Caves | Learned Factory stockpile data 12418 | -5/Upper Caves | Discovered new exit (range 14) 12440 | -5/Upper Caves | Identified exit to Upper Caves 12441 | -5/Upper Caves | Entered another Upper Caves area 12445 | -5/Upper Caves | Discovered new exit (range 8) 12539 | -5/Upper Caves | Identified exit to Warlord 13026 | -5/Upper Caves | Spotted B-75 Beast 13226 | -5/Upper Caves | Entered Warlord 13267 | -5/Warlord | System corruption cleaned by Quarantine Array 13646 | -5/Warlord | Visited the Vortex Lab 13657 | -5/Warlord | Found Prototype Energy Gun 13658 | -5/Warlord | Found Prototype Energy Cannon 13661 | -5/Warlord | Found Prototype Energy Gun 13662 | -5/Warlord | Warlord's base attacked by MAIN.C 13663 | -5/Warlord | Found Prototype Energy Gun 13724 | -5/Warlord | Found Prototype Processor 13724 | -5/Warlord | Identified Exp. Core Analyzer 13731 | -5/Warlord | Found Prototype Device 13731 | -5/Warlord | Identified Exp. Cloaking Device 13769 | -5/Warlord | Met Warlord 14012 | -5/Warlord | Warlord forces counterattacked 14039 | -5/Warlord | Spotted Striker 14104 | -5/Warlord | Lost 19 allies 14337 | -5/Warlord | Warlord base infiltrated, sounded retreat 14338 | -5/Warlord | Enhanced Grunt warped into view 14338 | -5/Warlord | Enhanced Grunt warped into view 14338 | -5/Warlord | Enhanced Grunt warped into view 14338 | -5/Warlord | Enhanced Demolisher warped into view 14338 | -5/Warlord | Enhanced Demolisher warped into view 14338 | -5/Warlord | Enhanced Demolisher warped into view 14367 | -5/Warlord | Spotted Striker 14373 | -5/Warlord | Crushed by falling debris 14391 | -5/Warlord | Spotted Striker 14413 | -5/Warlord | Spotted Striker 14415 | -5/Warlord | Spotted B-75 Beast 14417 | -5/Warlord | Spotted Executioner 14422 | -5/Warlord | Spotted Striker 14423 | -5/Warlord | Spotted Executioner 14462 | -5/Warlord | Found Prototype Device 14462 | -5/Warlord | Identified Exp. Shock Absorption System 14489 | -5/Warlord | Lost 3 allies 14509 | -5/Warlord | Spotted Executioner 14558 | -5/Warlord | Discovered new exit (range 15) 14562 | -5/Warlord | Spotted Striker 14562 | -5/Warlord | Spotted B-75 Beast 14562 | -5/Warlord | Spotted Striker 14569 | -5/Warlord | Spotted B-86 Titan 14575 | -5/Warlord | Entered Proximity Caves 14603 | -4/Proximity Caves | Lost 14 allies 14680 | -4/Proximity Caves | Learned location of 1 exit from Research 14926 | -4/Proximity Caves | Spotted B-86 Titan 14940 | -4/Proximity Caves | Destroyed B-86 Titan 15125 | -4/Proximity Caves | Discovered exit to Factory (range 15) 15146 | -4/Proximity Caves | Entered Factory 15146 | -4/Factory | Evolved 2 slots: Propulsion x1, Utility x1 15147 | -4/Factory | Identified exit to Armory 15486 | -4/Factory | Destroyed 8 combat bots 15601 | -4/Factory | Discovered new exit (range 8) 16032 | -4/Factory | Cargo convoy interrupted 16073 | -4/Factory | Discovered new exit (range 7) 16118 | -4/Factory | Garrison activated, responded to threat 16332 | -4/Factory | Discovered new exit (range 11) 16646 | -4/Factory | First assault squad dispatched 17242 | -4/Factory | Identified exit to Upper Caves 17242 | -4/Factory | Identified exit to Extension 17413 | -4/Factory | Entered Extension 17775 | -4/Extension | Rescued A7 18178 | -4/Extension | Rescued a captive Derelict 18180 | -4/Extension | Rescued a captive Derelict 18200 | -4/Extension | Rescued a captive Derelict 18201 | -4/Extension | Rescued a captive Derelict 18266 | -4/Extension | Rescued a captive Derelict 18266 | -4/Extension | Rescued a captive Derelict 18513 | -4/Extension | Build established: Commander-Construct 18529 | -4/Extension | Spotted B-86 Titan 18535 | -4/Extension | Destroyed B-86 Titan 18544 | -4/Extension | Spotted B-86 Titan 18561 | -4/Extension | Allies destroyed B-86 Titan 18657 | -4/Extension | Lost 3 allies 18960 | -4/Extension | Rescued a captive Derelict 18961 | -4/Extension | Rescued a captive Derelict 19059 | -4/Extension | Rescued a captive Derelict 19072 | -4/Extension | Rescued a captive Derelict 19163 | -4/Extension | First assault squad dispatched 19215 | -4/Extension | Disrupted transfer network 19227 | -4/Extension | Discovered new exit (range 10) 19228 | -4/Extension | Discovered new exit (range 6) 19234 | -4/Extension | Identified exit to Cetus 19311 | -4/Extension | Entered Cetus 19311 | -4/Cetus | Accompanied by 16 allies (A7) 19316 | -4/Cetus | Acquired a Cetus Manufacturing Module code from A7 19328 | -4/Cetus | Spotted Cetus Guard 19330 | -4/Cetus | Spotted Cetus Guard 19331 | -4/Cetus | Spotted Cetus Guard 19331 | -4/Cetus | Spotted Cetus Guard 19336 | -4/Cetus | Destroyed Cetus Guard 19346 | -4/Cetus | Destroyed Cetus Guard 19349 | -4/Cetus | Destroyed Cetus Guard 19351 | -4/Cetus | Destroyed Cetus Guard 19386 | -4/Cetus | Lost 6 allies 19412 | -4/Cetus | Started Cetus Manufacturing Module 19437 | -4/Cetus | Manufactured an Enhanced Grunt 19447 | -4/Cetus | Discovered new exit (range 15) 19462 | -4/Cetus | Manufactured an Enhanced Grunt 19472 | -4/Cetus | Spotted Cetus Guard 19472 | -4/Cetus | Spotted Cetus Guard 19474 | -4/Cetus | Spotted Cetus Guard 19474 | -4/Cetus | Spotted Cetus Guard 19480 | -4/Cetus | Allies destroyed Cetus Guard 19482 | -4/Cetus | Destroyed Cetus Guard 19487 | -4/Cetus | Manufactured an Enhanced Grunt 19490 | -4/Cetus | Destroyed Cetus Guard 19495 | -4/Cetus | Allies destroyed Cetus Guard 19500 | -4/Cetus | Discovered new exit (range 16) 19508 | -4/Cetus | Met Revision 17 19512 | -4/Cetus | Manufactured an Enhanced Grunt 19537 | -4/Cetus | Manufactured an Enhanced Grunt 19587 | -4/Cetus | Escorted A7 to Cetus Mainframe 20061 | -4/Cetus | Security sweep announced 20062 | -4/Cetus | Identified exit to Archives 20088 | -4/Cetus | Entered Archives 20088 | -4/Archives | Accompanied by 13 allies (A7) 20093 | -4/Archives | Received a hacking code to weaken MAIN.C 20137 | -4/Archives | Discovered new exit (range 16) 20151 | -4/Archives | Discovered new exit (range 16) 20257 | -4/Archives | Identified exit to Hub_04(d) 20281 | -4/Archives | Discovered new exit (range 15) 20375 | -4/Archives | Entered Hub_04(d) 20375 | -4/Hub_04(d) | Accompanied by 11 allies 20397 | -4/Hub_04(d) | Discovered new exit (range 16) 20485 | -4/Hub_04(d) | Network Hub disabled 20501 | -4/Hub_04(d) | Identified exit to Research 20514 | -4/Hub_04(d) | Spotted Lightning 20516 | -4/Hub_04(d) | Spotted Lightning 20517 | -4/Hub_04(d) | Lost 5 allies 20517 | -4/Hub_04(d) | Spotted Lightning 20528 | -4/Hub_04(d) | Destroyed Lightning 20536 | -4/Hub_04(d) | Destroyed Lightning 20550 | -4/Hub_04(d) | Core integrity fell below 50% 20550 | -4/Hub_04(d) | System corruption reached 10% 20551 | -4/Hub_04(d) | Destroyed Lightning 20554 | -4/Hub_04(d) | Lost 5 allies 20558 | -4/Hub_04(d) | Found Prototype Device 20558 | -4/Hub_04(d) | Identified Exp. Phase Shifter 20565 | -4/Hub_04(d) | Found Prototype Device 20565 | -4/Hub_04(d) | Identified Exp. EM Shield 20576 | -4/Hub_04(d) | Found Prototype Processor 20576 | -4/Hub_04(d) | Identified Exp. Targeting Computer 20590 | -4/Hub_04(d) | Entered Research 20590 | -3/Research | Evolved 2 slots: Power x1, Utility x1 20591 | -3/Research | Identified exit to Research 20787 | -3/Research | Identified Vortex Driver 20790 | -3/Research | Revision forces began assault on 0b10 20825 | -3/Research | Met up with Revision 17++ 20827 | -3/Research | Build established: Construct 21290 | -3/Research | Research terminal network offline 21464 | -3/Research | Discovered new exit (range 16) 21474 | -3/Research | Identified exit to Quarantine 21489 | -3/Research | Entered Quarantine 21528 | -3/Quarantine | Cryocooling Duct disabled 21543 | -3/Quarantine | Ambient heat levels rising (+20) 21543 | -3/Quarantine | Non-combat units ordered to evacuate 21555 | -3/Quarantine | Cryocooling Duct disabled 21570 | -3/Quarantine | Ambient heat levels rising (+20) 21570 | -3/Quarantine | Combat units ordered to evacuate 21670 | -3/Quarantine | Quarantine Guard activated 21749 | -3/Quarantine | Spotted Quarantine Guard 21751 | -3/Quarantine | Destroyed Quarantine Guard 21766 | -3/Quarantine | Spotted Quarantine Guard 21771 | -3/Quarantine | Spotted Quarantine Guard 21784 | -3/Quarantine | Destroyed Quarantine Guard 21804 | -3/Quarantine | Destroyed Quarantine Guard 21835 | -3/Quarantine | Spotted Quarantine Guard 21838 | -3/Quarantine | Spotted Quarantine Guard 21839 | -3/Quarantine | Destroyed Quarantine Guard 21843 | -3/Quarantine | Spotted Quarantine Guard 21847 | -3/Quarantine | Spotted Quarantine Guard 21849 | -3/Quarantine | Destroyed Quarantine Guard 21849 | -3/Quarantine | Destroyed Quarantine Guard 21862 | -3/Quarantine | Destroyed Quarantine Guard 21901 | -3/Quarantine | Spotted Alpha 7 21907 | -3/Quarantine | Destroyed Alpha 7 22182 | -3/Quarantine | Spotted Quarantine Guard 22191 | -3/Quarantine | Destroyed Quarantine Guard 22389 | -3/Quarantine | Spotted Quarantine Guard 22391 | -3/Quarantine | Destroyed Quarantine Guard 22427 | -3/Quarantine | Found Alien Artifact 22427 | -3/Quarantine | Identified Phase Redirector 22487 | -3/Quarantine | Discovered exit to Research (range 7) 22487 | -3/Quarantine | Spotted Quarantine Guard 22491 | -3/Quarantine | Destroyed Quarantine Guard 23176 | -3/Quarantine | Found Alien Artifact 23176 | -3/Quarantine | Identified Core Reset Matrix 23176 | -3/Quarantine | Used Core Reset Matrix 23180 | -3/Quarantine | Detected hypermatrix surge 23180 | -3/Quarantine | Sensed 13 artifacts in vicinity 23534 | -3/Quarantine | Found Subatomic Replicator 23558 | -3/Quarantine | Found Unknown Device 23567 | -3/Quarantine | Identified Quantum Capacitor 23694 | -3/Quarantine | Discovered exit to Research (range 16) 23920 | -3/Quarantine | Found Hpw. Transdimensional Reconstructor 23929 | -3/Quarantine | Found Dimensional Node Initializer 23938 | -3/Quarantine | Found Hpw. Transdimensional Reconstructor 23998 | -3/Quarantine | Spotted Fortress 24040 | -3/Quarantine | Destroyed Fortress 24071 | -3/Quarantine | Found Prototype Device 24077 | -3/Quarantine | Identified Exp. Force Field 24262 | -3/Quarantine | Discovered new exit (range 7) 24262 | -3/Quarantine | Spotted Quarantine Guard 24266 | -3/Quarantine | Discovered new exit (range 10) 24266 | -3/Quarantine | Spotted Quarantine Guard 24278 | -3/Quarantine | Identified exit to Section 7 24279 | -3/Quarantine | Entered Section 7 24280 | -3/Section 7 | Detected hypermatrix surge 24280 | -3/Section 7 | Sensed 22 artifacts in vicinity 24486 | -3/Section 7 | Spotted S7 Guard 24521 | -3/Section 7 | Discovered exit to Research (range 13) 24538 | -3/Section 7 | Initialized slip node 24551 | -3/Section 7 | Found Integrated Dissipator 24551 | -3/Section 7 | Installed Integrated Dissipator, increased core heat dissipation (+20) 24577 | -3/Section 7 | Found Integrated Reactor 24577 | -3/Section 7 | Installed Integrated Reactor, increased core energy generation (+10) 24741 | -3/Section 7 | Spotted Alpha 7 24772 | -3/Section 7 | Spotted Alpha 7 24818 | -3/Section 7 | Destroyed Alpha 7 24827 | -3/Section 7 | Destroyed Alpha 7 24861 | -3/Section 7 | Found Prototype Processor 24904 | -3/Section 7 | Identified Exp. Target Analyzer 24916 | -3/Section 7 | Found Prototype Device 24925 | -3/Section 7 | Identified Exp. ECM Suite 24991 | -3/Section 7 | Spotted B-99 Colossus 25026 | -3/Section 7 | Found Core Expander 25026 | -3/Section 7 | Installed Core Expander, added new Weapon slot 25052 | -3/Section 7 | Found LRC Energy Well 25052 | -3/Section 7 | Installed LRC Energy Well, increased energy storage capacity (+250) 25057 | -3/Section 7 | Found LRC Insulator 25057 | -3/Section 7 | Installed LRC Insulator, 1 resistance modified: EM +25% 25059 | -3/Section 7 | Found LRC Insulator 25059 | -3/Section 7 | Installed LRC Insulator, 1 resistance modified: EM +25% 25088 | -3/Section 7 | Warped through subspace to slip node 25314 | -3/Section 7 | Build established: Alien-Construct 25413 | -3/Section 7 | Found Integrated Dissipator 25413 | -3/Section 7 | Installed Integrated Dissipator, increased core heat dissipation (+20) 25451 | -3/Section 7 | Crushed by falling debris 25471 | -3/Section 7 | Found Prototype Device 25476 | -3/Section 7 | Identified Exp. Thermal Shield 25501 | -3/Section 7 | Found Integrated Reactor 25501 | -3/Section 7 | Installed Integrated Reactor, increased core energy generation (+10) 25770 | -3/Section 7 | Entered Research 25770 | -2/Research | Warlord forces began assault on 0b10 25770 | -2/Research | Evolved 2 slots: Utility x2 25880 | -2/Research | Research machine network offline 26094 | -2/Research | Discovered new exit (range 13) 26107 | -2/Research | Identified exit to Access 26284 | -2/Research | Met up with Warlord 26345 | -2/Research | Spotted Striker 26346 | -2/Research | Met DD-05H 26402 | -2/Research | Spotted Striker 26405 | -2/Research | Spotted Striker 26488 | -2/Research | Discovered new exit (range 9) 26492 | -2/Research | Identified exit to Testing 26621 | -2/Research | Found Exp. Targeting Computer 26727 | -2/Research | Borebot progress halted 26761 | -2/Research | Found Prototype Device 26781 | -2/Research | Identified Adv. Kinecellerator 26795 | -2/Research | Found Prototype Device 26802 | -2/Research | Identified Exp. Phase Shifter 26962 | -2/Research | Found Corrupted Prototype Processor 26988 | -2/Research | Identified Exp. Core Analyzer 27016 | -2/Research | Spotted Striker 27018 | -2/Research | Destroyed Striker 27018 | -2/Research | Destroyed Striker 27026 | -2/Research | Spotted Striker 27026 | -2/Research | Destroyed Striker 27046 | -2/Research | Found Prototype Processor 27053 | -2/Research | Found Exp. Core Analyzer 27060 | -2/Research | Destroyed 9 combat bots 27064 | -2/Research | Lost 8 allies 27090 | -2/Research | Identified Exp. Melee Analysis Suite 27141 | -2/Research | Borebot progress halted 27275 | -2/Research | Given Cave Seal Controls access code 27339 | -2/Research | Spotted Striker 27349 | -2/Research | Destroyed Striker 27407 | -2/Research | Entered Testing 27642 | -2/Testing | Found Prototype Device 27649 | -2/Testing | Identified Thermal Barrier 27803 | -2/Testing | Found Prototype Energy Cannon 27806 | -2/Testing | Identified Disintegrator 27918 | -2/Testing | Found Exp. Core Analyzer 27935 | -2/Testing | Found Prototype Device 27946 | -2/Testing | Identified Exp. Transmission Jammer 28028 | -2/Testing | Found Prototype Energy Cannon 28030 | -2/Testing | Identified Cld. Nova Cannon 28242 | -2/Testing | Entered Access 28242 | -1/Access | Evolved 2 slots: Utility x2 28277 | -1/Access | Garrison activated, responded to threat 28296 | -1/Access | Destroyed 7 combat bots 28707 | -1/Access | Watched by a mysterious "MATRIX" hacker 28742 | -1/Access | First assault squad dispatched 28765 | -1/Access | Discovered new exit (range 8) 28768 | -1/Access | Identified exit to Command 28769 | -1/Access | Entered Command 28875 | -1/Command | Destroyed 10 combat bots 28901 | -1/Command | Disengaged cave seal 28901 | -1/Command | Derelicts emerged from the dark tunnel 28901 | -1/Command | Welcomed Warlord to Command 28980 | -1/Command | Disengaged cave seal 28980 | -1/Command | Derelicts emerged from the dark tunnel 28996 | -1/Command | Lost 4 allies 29140 | -1/Command | Destroyed 9 combat bots 29326 | -1/Command | Spotted M Guard 29326 | -1/Command | Spotted M Guard 29326 | -1/Command | Spotted Combat Programmer 29335 | -1/Command | Spotted Combat Programmer 29336 | -1/Command | Warlord commented on Warlord statues 29368 | -1/Command | Destroyed Combat Programmer 29381 | -1/Command | Destroyed Combat Programmer 29381 | -1/Command | All MAIN.C guards destroyed 29470 | -1/Command | Met MAIN.C 29472 | -1/Command | Warlord shut down involuntarily 29480 | -1/Command | Destroyed MAIN.C Shell 29482 | -1/Command | MAIN.C activated Command garrisons 29513 | -1/Command | 0b10 Conduit disabled 29541 | -1/Command | Destroyed MAIN.C 29548 | -1/Command | Discovered new exit (range 49) 29548 | -1/Command | Discovered new exit (range 97) 29548 | -1/Command | Extracted map data and part IDs from MAIN.C's data core 30411 | -1/Command | Attacked by Warlord forces 30518 | -1/Command | Found Exp. Core Analyzer 30521 | -1/Command | Found Exp. Targeting Computer 30753 | -1/Command | Found Exp. Powered Armor 31098 | -1/Command | Phase Generator disabled 31156 | -1/Command | Warped through subspace to slip node 31156 | -1/Command | Discovered new exit (range 5) 31160 | -1/Command | Entered Access_0 31161 | -1/Access_0 | Sensed 4 artifacts in vicinity 31162 | -1/Access_0 | Met Architect 31163 | -1/Access_0 | Architect warped through subspace 31178 | -1/Access_0 | Destroyed A8 31184 | -1/Access_0 | Found Exp. Thermal Shield 31196 | -1/Access_0 | Subspace Access Node disabled 31199 | -1/Access_0 | Architect warped through subspace 31205 | -1/Access_0 | Found Integrated Dissipator 31205 | -1/Access_0 | Installed Integrated Dissipator, increased core heat dissipation (+20) 31225 | -1/Access_0 | A6 warped into view 31231 | -1/Access_0 | Destroyed A6 31233 | -1/Access_0 | Architect warped through subspace 31243 | -1/Access_0 | Architect warped through subspace 31267 | -1/Access_0 | Architect warped through subspace 31282 | -1/Access_0 | Architect warped through subspace 31287 | -1/Access_0 | Found Adv. Kinecellerator 31289 | -1/Access_0 | Found Spectral Analyzer 31316 | -1/Access_0 | Architect warped through subspace 31319 | -1/Access_0 | Found Exp. Powered Armor 31335 | -1/Access_0 | Architect warped through subspace 31352 | -1/Access_0 | Architect warped through subspace 31372 | -1/Access_0 | Architect warped through subspace 31381 | -1/Access_0 | A5 warped into view 31397 | -1/Access_0 | Destroyed A5 31401 | -1/Access_0 | Architect warped through subspace 31434 | -1/Access_0 | Architect warped through subspace 31438 | -1/Access_0 | Subspace Access Node disabled 31455 | -1/Access_0 | Subspace Access Node disabled 31466 | -1/Access_0 | Architect warped through subspace 31481 | -1/Access_0 | Destroyed A2 31482 | -1/Access_0 | Extracted Singularity Gate Test 138-C access codes from A2's data core 31483 | -1/Access_0 | Found Deep Network Scanner 31486 | -1/Access_0 | Found Deep Network Scanner 31509 | -1/Access_0 | Architect warped through subspace 31530 | -1/Access_0 | Found Integrated Reactor 31530 | -1/Access_0 | Installed Integrated Reactor, increased core energy generation (+10) 31544 | -1/Access_0 | Found Hpw. Transdimensional Reconstructor 31554 | -1/Access_0 | Architect warped through subspace 31563 | -1/Access_0 | Started Test 138-B, establishing a local singularity 31563 | -1/Access_0 | Started Test 138-C, cascade imminent 31563 | *** | Destroyed Tau Ceti IV! Last Messages --------------- Architect warps through subspace. 31563_ Connecting with Gate Controls... 31563_ Current location identified: Access_0 >>Gate Test 138-A Running Singularity Gate diagnostics... All systems nominal. >>Gate Test 138-B Preparing Singularity Gate activation... Stable singularity established. >>Gate Test 138-C Initiating Test 138-C... Warning: Experimental formulas incomplete. Potential effects include instability. Repeat command to confirm test. >>Gate Test 138-C Initiating Test 138-C... Applying incomplete calculations.... INSTABILITY DETECTED, CASCADE IMMINENT. [Achievement: Stardust] [Achievement: Renaissance Bot] Map ----- +----------------------------------------------------+ | ???????????????????????# ""%"# #????????????????? | | ???????????##########?####"!!! #????????????????? | | ???????????# ?# !%! #????????????????? | | ???????????# [[ ** ?# ####!!] ###??????????????? | | ???????????# [[ ** ?# #?#=!= ""#??????????????? | | ???????????# ?# ## #"" "##?????????????? | | ???????????# !! ]] ## ######"" ""#?????????????? | | ???????????# !! ]] #????#" #?????????????? | | ???????????# #????# ##????????????? | | ???????????# #????# #????????????? | | ???????????# #????# "##????????????? | | ???????????######### #????# "#?????????????? | | ??????????????###### ####### "#?????????????? | | ??????????????#""""" """""### "#?????????????? | | ??????????????##"""" """"##?# ##?????????????? | | ??????????????##" "##?# "??????????????? | | ??????????????#"" ""#?# "??????????????? | | ??????????????#"" ""#?# "#?????????????? | | ??????????????##" "##?# "#?????????????? | | ???????????????#" "#??# "#?????????????? | | ???????????????#" "#??# "#?????????????? | | ???????????????#" "#??# "#?????????????? | | ??????????????##" "##?# "#????###???###? | | ??????????????#"" ""#?# ##??###"#####"## | | ??????????????#"" ""#?# #???#"" """"" "" | | ??????????????##" @ "#### "####" " | | ???????????????#"""" A""#?# ! | | ??????????????#""""" """""## !!!== | | ??????????????###### ####### ###" =[!!" | | ???????????????????# #?????## ##"" """" % " | | ???????????????????# #??????#" ####"###*" ## | | ?????????????????? #???????" #??###?##"##? | | ????????????????? #???????# #???????###?? | | ???????????????? # #??????? ???????????? | | ??????????????? ## #??????? #??????????? | | ?????????????? ?# #??????? ###??????????? | | ????????????? ? #####?????? ##????????????? | | ????????????## ? ??????????? #?????????????? | | ?????????????## ? ??????????? ?????????????? | | ??????????????# ? ?????????? ?????????????? | | ??????????????# ?????????? #?????????????? | | ?????????????? ?###?????????? #?????????????? | | ????????????? ???????????????## #?????????????? | | ?????????!??? ????????????????# ??????????????# | | ????????????????????????????????# ??????????????# | | ????????????????????????????????# ??????????????? | | ????????????????????????????????# ??????????????? | | ????????????????????????????????# ??????????????? | | ????????????????????????????????? ??????????????? | | ????????????????????????????????? ??????????????? | +----------------------------------------------------+ Best States ------------- Heat Dissipation 157 Coolant Potential 50 Energy Generation 143 Energy Capacity 2508 Matter Stores 300 Matter Capacity 600 Sight Range 24 Robot Scan Range 16 Terrain Scan Density 10 Jamming Range 22 Cloak Strength 4 Base Temperature (-) 200 EM Shielding 2 Armor Coverage 450 Resistance: KI 30 Resistance: TH 50 Resistance: EM 100 Weapon Cycling 25 Phase Shifting 20 Evasion (%) 92 Targeting Accuracy 36 Core Analysis 12 Recoil Reduction 6 Kinecelleration 50 Item Schematics ----------------- None Robot Schematics ------------------ None Fabricated ------------ Imp. Cryofiber Web | x2 | -5/Factory Repaired ---------- Adv. Cryofiber Web | 5% | -6/Factory Studied --------- None Alien Tech Used ----------------- Phase Redirector Core Reset Matrix Dimensional Node Initializer Integrated Dissipator Integrated Reactor Core Expander LRC Energy Well LRC Insulator High-powered Transdimensional Reconstructor Achievements -------------- Out Of My Way Renaissance Bot Stardust Superinsulated Challenges ------------ None Game ------ Seed AssembledThermicFlamer Manual? 0 Play Time 06:10:06 Cumulative 401.9 hours Start 2026.09.13 @ 04:15:06 End 2026.09.13 @ 23:11:45 Sessions 3 Manual Loads 0 Difficulty Rogue Special Mode None Game No. 357 Rogue 303 Adventurer 54 Explorer 0 Win Type 5 Total 24 Types 15/1/1/1/1/1/1/1/1/1 Lore% 83 Gallery% 70 Achievement% 70 Wizard Run 0 Options --------- Layout 1 ASCII 0 Keyboard 0 Movement Mouse Keybinds 1 Fullscreen 2 Font 32/Tamsyn Map View 50x35 Zoom Use 0% Tactical HUD 1 Map Filters NONE Filters NONE Steam 1 RUN: 5a58bafc-b0fe-4e4f-b769-ec15f7674eeb